Department Family,Entity,Date Paid,Expense Type,Expense Area,Supplier,Transaction Number,Amount (�),Supplier VAT Registration Number
BEIS,Met Office,2021-03-30,11 SERVICES,PEOPLE,A Cloud Guru Ltd,452327,248,GB230465925
BEIS,Met Office,2021-03-09,13 MISCELLANEOUS,SCIENCE,AB MULTIMEDIA LTD,453208,1200,849333502
BEIS,Met Office,2021-03-09,06 ACCOMMODATION,CHIEF FINANCIAL OFFICER,ABOVE THE REST COMMERCIAL CLEANING LTD,453156,565,166969348
BEIS,Met Office,2021-03-11,11 SERVICES,MARKETS,ACCELERATION EMARKETING,453300,3780.98,848940776
BEIS,Met Office,2021-03-02,11 SERVICES,CHIEF FINANCIAL OFFICER,ACHILLES INFORMATION LIMITED,452814,2000,GB 663 5624 23
BEIS,Met Office,2021-03-11,11 SERVICES,CHIEF FINANCIAL OFFICER,ACTIVE PEST MANAGEMENT,453328,86.1,791419116
BEIS,Met Office,2021-03-11,11 SERVICES,CHIEF FINANCIAL OFFICER,ADAM PHONES LTD,453478,319.2,538877093
BEIS,Met Office,2021-03-16,11 SERVICES,CHIEF FINANCIAL OFFICER,ADAM PHONES LTD,453668,353.4,538877093
BEIS,Met Office,2021-03-16,11 SERVICES,CHIEF FINANCIAL OFFICER,ADAM PHONES LTD,453669,353.4,538877093
BEIS,Met Office,2021-03-09,11 SERVICES,MARKETS,ADOPSTAR,452977,1250,115036848
BEIS,Met Office,2021-03-23,11 SERVICES,CHIEF FINANCIAL OFFICER,ADT FIRE AND SECURITY PLC,451330,351.28,413633086
BEIS,Met Office,2021-03-16,08 SOFTWARE LICENCES,CHIEF FINANCIAL OFFICER,ADVANCED BUSINESS SOLUTIONS LTD,453313,59263.61,927547983
BEIS,Met Office,2021-03-02,11 SERVICES,MARKETS,AEROSPACE & MARINE INTERNATIONAL (UK) LIMITED,452812,48000,GB 856729086
BEIS,Met Office,2021-03-11,11 SERVICES,MARKETS,AIRLINES UK-THE ASSOCIATION OF UK AIRLINES,453001,1000,GB802641559
BEIS,Met Office,2021-03-16,03 STAFF COSTS T&S,SERVICES,AIRPORT CAR RENTALS LTD,453633,320,-
BEIS,Met Office,2021-03-18,03 STAFF COSTS T&S,SERVICES,AIRPORT CAR RENTALS LTD,453857,583,-
BEIS,Met Office,2021-03-11,11 SERVICES,TECHNOLOGY AND CIO,AKAMAI TECHNOLOGIES LTD,453166,4918.08,745091237
BEIS,Met Office,2021-03-11,11 SERVICES,TECHNOLOGY AND CIO,AKAMAI TECHNOLOGIES LTD,453166,25819.95,745091237
BEIS,Met Office,2021-03-02,INFORMATION TECHNOLOGY,TECHNOLOGY AND CIO,AKHTER COMPUTERS LTD,452006,5024,532262963
BEIS,Met Office,2021-03-02,INFORMATION TECHNOLOGY,TECHNOLOGY AND CIO,AKHTER COMPUTERS LTD,452506,1050,532262963
BEIS,Met Office,2021-03-02,INFORMATION TECHNOLOGY,TECHNOLOGY AND CIO,AKHTER COMPUTERS LTD,452907,2253,532262963
BEIS,Met Office,2021-03-02,INFORMATION TECHNOLOGY,TECHNOLOGY AND CIO,AKHTER COMPUTERS LTD,452909,17753,532262963
BEIS,Met Office,2021-03-02,INFORMATION TECHNOLOGY,TECHNOLOGY AND CIO,AKHTER COMPUTERS LTD,452910,2152,532262963
BEIS,Met Office,2021-03-02,INFORMATION TECHNOLOGY,TECHNOLOGY AND CIO,AKHTER COMPUTERS LTD,452910,101,532262963
BEIS,Met Office,2021-03-02,INFORMATION TECHNOLOGY,TECHNOLOGY AND CIO,AKHTER COMPUTERS LTD,452911,75,532262963
BEIS,Met Office,2021-03-02,INFORMATION TECHNOLOGY,TECHNOLOGY AND CIO,AKHTER COMPUTERS LTD,452912,55,532262963
BEIS,Met Office,2021-03-09,INFORMATION TECHNOLOGY,TECHNOLOGY AND CIO,AKHTER COMPUTERS LTD,453182,165,532262963
BEIS,Met Office,2021-03-04,11 SERVICES,CHIEF FINANCIAL OFFICER,ALLSTAR BUSINESS SOLUTIONS LTD,453101,837.38,747880191
BEIS,Met Office,2021-03-18,11 SERVICES,CHIEF FINANCIAL OFFICER,ALLSTAR BUSINESS SOLUTIONS LTD,453736,469.33,747880191
BEIS,Met Office,2021-03-03,11 SERVICES,TECHNOLOGY AND CIO,AMAZON WEB SERVICES INC.,10104,87151.58,N/A
BEIS,Met Office,2021-03-10,11 SERVICES,TECHNOLOGY AND CIO,AMAZON WEB SERVICES INC.,10119,10936.69,N/A
BEIS,Met Office,2021-03-31,11 SERVICES,TECHNOLOGY AND CIO,AMAZON WEB SERVICES INC.,10146,0.48,N/A
BEIS,Met Office,2021-03-31,11 SERVICES,TECHNOLOGY AND CIO,AMAZON WEB SERVICES INC.,10149,86286.23,N/A
BEIS,Met Office,2021-03-09,06 ACCOMMODATION,CHIEF FINANCIAL OFFICER,ANGLIAN WATER BUSINESS NATIONAL LTD,453161,18.42,51406002
BEIS,Met Office,2021-03-11,11 SERVICES,CHIEF FINANCIAL OFFICER,ANVIL MOBILE LIMITED,453335,82.6,981686175
BEIS,Met Office,2021-03-11,11 SERVICES,CHIEF FINANCIAL OFFICER,ANVIL MOBILE LIMITED,453335,98.6,981686175
BEIS,Met Office,2021-03-11,11 SERVICES,CHIEF FINANCIAL OFFICER,ANVIL MOBILE LIMITED,453335,111.3,981686175
BEIS,Met Office,2021-03-11,11 SERVICES,CHIEF FINANCIAL OFFICER,ANVIL MOBILE LIMITED,453335,34.85,981686175
BEIS,Met Office,2021-03-11,11 SERVICES,CHIEF FINANCIAL OFFICER,ANVIL MOBILE LIMITED,453335,43.6,981686175
BEIS,Met Office,2021-03-02,11 SERVICES,SERVICES,APPLIED SATELLITE TECHNOLOGY SYSTEMS LTD,451524,9818.92,720108683
BEIS,Met Office,2021-03-09,11 SERVICES,SERVICES,APPLIED SATELLITE TECHNOLOGY SYSTEMS LTD,452654,279.8,720108683
BEIS,Met Office,2021-03-23,11 SERVICES,SERVICES,APPLIED SATELLITE TECHNOLOGY SYSTEMS LTD,453870,331.58,720108683
BEIS,Met Office,2021-03-23,11 SERVICES,SERVICES,APPLIED SATELLITE TECHNOLOGY SYSTEMS LTD,453872,30.38,720108683
BEIS,Met Office,2021-03-23,11 SERVICES,SERVICES,APPLIED SATELLITE TECHNOLOGY SYSTEMS LTD,453878,110.39,720108683
BEIS,Met Office,2021-03-23,11 SERVICES,SERVICES,APPLIED SATELLITE TECHNOLOGY SYSTEMS LTD,453901,200.86,720108683
BEIS,Met Office,2021-03-23,11 SERVICES,SERVICES,APPLIED SATELLITE TECHNOLOGY SYSTEMS LTD,453905,254.71,720108683
BEIS,Met Office,2021-03-23,11 SERVICES,SERVICES,APPLIED SATELLITE TECHNOLOGY SYSTEMS LTD,453906,30.38,720108683
BEIS,Met Office,2021-03-23,11 SERVICES,SERVICES,APPLIED SATELLITE TECHNOLOGY SYSTEMS LTD,453908,9162.75,720108683
BEIS,Met Office,2021-03-16,13 MISCELLANEOUS,CHIEF FINANCIAL OFFICER,ARTHUR J. GALLAGHER INSURANCE BROKERS LIMITED,450073,1000,GB484746209
BEIS,Met Office,2021-03-30,13 MISCELLANEOUS,CHIEF FINANCIAL OFFICER,ARTHUR J. GALLAGHER INSURANCE BROKERS LIMITED,450074,-5947.2,GB484746209
BEIS,Met Office,2021-03-30,13 MISCELLANEOUS,CHIEF FINANCIAL OFFICER,ARTHUR J. GALLAGHER INSURANCE BROKERS LIMITED,450075,-11007.36,GB484746209
BEIS,Met Office,2021-03-11,13 MISCELLANEOUS,OFFICE OF THE CEO,ASSOCIATION OF CHIEF EXECUTIVES,453232,650,N/A
BEIS,Met Office,2021-03-23,11 SERVICES,CHIEF FINANCIAL OFFICER,ATN TEACHING & CONSULTANCY SERVICES LTD,450690,300,863 0802 34
BEIS,Met Office,2021-03-18,13 MISCELLANEOUS,SERVICES,AUTOMATED DOCUMENT SERVICES LTD,453679,8220.84,105353449
BEIS,Met Office,2021-03-09,10 EQUIPMENT MAINTENANCE,TECHNOLOGY AND CIO,AXIAL SYSTEMS LTD,453253,11334.47,927444704
BEIS,Met Office,2021-03-09,11 SERVICES,MARKETS,AXIANS NETWORKS LTD,452679,98.8,758219993
BEIS,Met Office,2021-03-03,11 SERVICES,SERVICES,"AXYS TECHNOLOGIES, INC",10137,107.17,-
BEIS,Met Office,2021-03-09,11 SERVICES,MARKETS,B2B INTERNATIONAL LTD,453301,17337.5,685937275
BEIS,Met Office,2021-03-02,11 SERVICES,PROGRAMMES,BAE SYSTEMS APPLIED INTELLIGENCE LIMITED,451765,9240,GB641407169
BEIS,Met Office,2021-03-18,11 SERVICES,TECHNOLOGY AND CIO,BAE SYSTEMS APPLIED INTELLIGENCE LIMITED,451769,11220,GB641407169
BEIS,Met Office,2021-03-02,11 SERVICES,TECHNOLOGY AND CIO,BAE SYSTEMS APPLIED INTELLIGENCE LIMITED,451801,7914.69,GB641407169
BEIS,Met Office,2021-03-11,11 SERVICES,TECHNOLOGY AND CIO,BAE SYSTEMS APPLIED INTELLIGENCE LIMITED,452333,11495.15,GB641407169
BEIS,Met Office,2021-03-02,11 SERVICES,PROGRAMMES,BAE SYSTEMS APPLIED INTELLIGENCE LIMITED,452707,49518.9,GB641407169
BEIS,Met Office,2021-03-09,11 SERVICES,TECHNOLOGY AND CIO,BAE SYSTEMS APPLIED INTELLIGENCE LIMITED,453212,10279.76,GB641407169
BEIS,Met Office,2021-03-09,11 SERVICES,TECHNOLOGY AND CIO,BAE SYSTEMS APPLIED INTELLIGENCE LIMITED,453291,13200,GB641407169
BEIS,Met Office,2021-03-09,11 SERVICES,TECHNOLOGY AND CIO,BAE SYSTEMS APPLIED INTELLIGENCE LIMITED,453292,20100.8,GB641407169
BEIS,Met Office,2021-03-11,11 SERVICES,PROGRAMMES,BAE SYSTEMS APPLIED INTELLIGENCE LIMITED,453293,18760,GB641407169
BEIS,Met Office,2021-03-16,11 SERVICES,TECHNOLOGY AND CIO,BAE SYSTEMS APPLIED INTELLIGENCE LIMITED,453623,9000,GB641407169
BEIS,Met Office,2021-03-16,11 SERVICES,TECHNOLOGY AND CIO,BAE SYSTEMS APPLIED INTELLIGENCE LIMITED,453624,10279.76,GB641407169
BEIS,Met Office,2021-03-18,11 SERVICES,PROGRAMMES,BAE SYSTEMS APPLIED INTELLIGENCE LIMITED,453625,25239.5,GB641407169
BEIS,Met Office,2021-03-16,11 SERVICES,TECHNOLOGY AND CIO,BAE SYSTEMS APPLIED INTELLIGENCE LIMITED,453626,13200,GB641407169
BEIS,Met Office,2021-03-16,11 SERVICES,TECHNOLOGY AND CIO,BAE SYSTEMS APPLIED INTELLIGENCE LIMITED,453627,13200,GB641407169
BEIS,Met Office,2021-03-16,11 SERVICES,TECHNOLOGY AND CIO,BAE SYSTEMS APPLIED INTELLIGENCE LIMITED,453697,11880,GB641407169
BEIS,Met Office,2021-03-18,11 SERVICES,PROGRAMMES,BAE SYSTEMS APPLIED INTELLIGENCE LIMITED,453698,16884,GB641407169
BEIS,Met Office,2021-03-18,11 SERVICES,PROGRAMMES,BAE SYSTEMS APPLIED INTELLIGENCE LIMITED,453700,11630.4,GB641407169
BEIS,Met Office,2021-03-16,11 SERVICES,TECHNOLOGY AND CIO,BAE SYSTEMS APPLIED INTELLIGENCE LIMITED,453710,10279.76,GB641407169
BEIS,Met Office,2021-03-18,11 SERVICES,TECHNOLOGY AND CIO,BAE SYSTEMS APPLIED INTELLIGENCE LIMITED,453830,11880,GB641407169
BEIS,Met Office,2021-03-25,11 SERVICES,TECHNOLOGY AND CIO,BAE SYSTEMS APPLIED INTELLIGENCE LIMITED,454065,10820.8,GB641407169
BEIS,Met Office,2021-03-31,11 SERVICES,TECHNOLOGY AND CIO,BAE SYSTEMS APPLIED INTELLIGENCE LIMITED,454338,1980,GB641407169
BEIS,Met Office,2021-03-31,11 SERVICES,TECHNOLOGY AND CIO,BAE SYSTEMS APPLIED INTELLIGENCE LIMITED,454339,10560,GB641407169
BEIS,Met Office,2021-03-17,11 SERVICES,MARKETS,"BASILIO SOZINHO CUBULA SERVI�OS, E.I.",10152,3484.64,N/A
BEIS,Met Office,2021-03-02,11 SERVICES,MARKETS,BBC MEDIA ACTION,452898,1026.93,GB333289454
BEIS,Met Office,2021-03-09,11 SERVICES,MARKETS,BBC MEDIA ACTION,453173,-1026.93,GB333289454
BEIS,Met Office,2021-03-09,11 SERVICES,MARKETS,BBC MEDIA ACTION,453174,102693,GB333289454
BEIS,Met Office,2021-03-30,06 ACCOMMODATION,CHIEF FINANCIAL OFFICER,Belfast International Airport Ltd,454175,238.75,617777601
BEIS,Met Office,2021-03-31,06 ACCOMMODATION,CHIEF FINANCIAL OFFICER,Belfast International Airport Ltd,454176,24018,617777601
BEIS,Met Office,2021-03-02,06 ACCOMMODATION,CHIEF FINANCIAL OFFICER,BIDVEST NOONAN UK LTD,446430,871.43,GB847176988
BEIS,Met Office,2021-03-02,06 ACCOMMODATION,CHIEF FINANCIAL OFFICER,BIDVEST NOONAN UK LTD,446695,871.43,GB847176988
BEIS,Met Office,2021-03-02,06 ACCOMMODATION,CHIEF FINANCIAL OFFICER,BIDVEST NOONAN UK LTD,447415,871.43,GB847176988
BEIS,Met Office,2021-03-02,06 ACCOMMODATION,CHIEF FINANCIAL OFFICER,BIDVEST NOONAN UK LTD,447416,871.43,GB847176988
BEIS,Met Office,2021-03-02,06 ACCOMMODATION,CHIEF FINANCIAL OFFICER,BIDVEST NOONAN UK LTD,452940,-871.43,GB847176988
BEIS,Met Office,2021-03-09,13 MISCELLANEOUS,SERVICES,Biffa Waste Services Ltd,450608,460,537911627
BEIS,Met Office,2021-03-09,13 MISCELLANEOUS,SERVICES,Biffa Waste Services Ltd,450608,68.25,537911627
BEIS,Met Office,2021-03-09,13 MISCELLANEOUS,SERVICES,Biffa Waste Services Ltd,450608,57.75,537911627
BEIS,Met Office,2021-03-09,13 MISCELLANEOUS,SERVICES,Biffa Waste Services Ltd,452991,-437,537911627
BEIS,Met Office,2021-03-09,11 SERVICES,PROGRAMMES,BJSS LIMITED,453259,68587.5,613295452
BEIS,Met Office,2021-03-09,11 SERVICES,PROGRAMMES,BJSS LIMITED,453260,10625,613295452
BEIS,Met Office,2021-03-16,11 SERVICES,PROGRAMMES,BJSS LIMITED,453439,5950,613295452
BEIS,Met Office,2021-03-16,11 SERVICES,PROGRAMMES,BJSS LIMITED,453439,5100,613295452
BEIS,Met Office,2021-03-16,11 SERVICES,PROGRAMMES,BJSS LIMITED,453439,5950,613295452
BEIS,Met Office,2021-03-11,04 CONTRACTORS,PROGRAMMES,BJSS LIMITED,453440,16150,613295452
BEIS,Met Office,2021-03-11,11 SERVICES,SERVICES,BOC LTD,453069,15840.66,226556555
BEIS,Met Office,2021-03-11,11 SERVICES,SERVICES,BOC LTD,453454,-100.02,226556555
BEIS,Met Office,2021-03-25,08 SOFTWARE LICENCES,TECHNOLOGY AND CIO,BOXXE,454136,76857,734245248
BEIS,Met Office,2021-03-30,08 SOFTWARE LICENCES,PEOPLE,BOXXE,454266,3999.68,734245248
BEIS,Met Office,2021-03-25,11 SERVICES,PEOPLE,BRIGHTCOVE INC,454062,72960,TAX 20-1579162
BEIS,Met Office,2021-03-09,06 ACCOMMODATION,CHIEF FINANCIAL OFFICER,BRITISH GAS TRADING LTD,426694,76.87,684966762
BEIS,Met Office,2021-03-02,06 ACCOMMODATION,CHIEF FINANCIAL OFFICER,BRITISH GAS TRADING LTD,452845,30.38,684966762
BEIS,Met Office,2021-03-09,06 ACCOMMODATION,CHIEF FINANCIAL OFFICER,BRITISH GAS TRADING LTD,452905,31.39,684966762
BEIS,Met Office,2021-03-09,06 ACCOMMODATION,CHIEF FINANCIAL OFFICER,BRITISH GAS TRADING LTD,452906,33.41,684966762
BEIS,Met Office,2021-03-09,06 ACCOMMODATION,CHIEF FINANCIAL OFFICER,BRITISH GAS TRADING LTD,452908,92.14,684966762
BEIS,Met Office,2021-03-16,06 ACCOMMODATION,CHIEF FINANCIAL OFFICER,BRITISH GAS TRADING LTD,453517,5637.66,684966762
BEIS,Met Office,2021-03-23,11 SERVICES,CHIEF FINANCIAL OFFICER,BT CONFERENCING,453937,90.25,245719348
BEIS,Met Office,2021-03-09,11 SERVICES,CHIEF FINANCIAL OFFICER,BT GLOBAL SERVICES,452848,15953.1,245719348
BEIS,Met Office,2021-03-23,11 SERVICES,CHIEF FINANCIAL OFFICER,BT GLOBAL SERVICES,453862,11272.15,245719348
BEIS,Met Office,2021-03-09,11 SERVICES,CHIEF FINANCIAL OFFICER,BT PLC,453170,12126.54,245719348
BEIS,Met Office,2021-03-08,11 SERVICES,CHIEF FINANCIAL OFFICER,BT PLC,453279,-20432.48,245719348
BEIS,Met Office,2021-03-23,11 SERVICES,CHIEF FINANCIAL OFFICER,BT PLC,453943,876.22,245719348
BEIS,Met Office,2021-03-11,06 ACCOMMODATION,CHIEF FINANCIAL OFFICER,BUSINESS STREAM,453473,158.41,945850885
BEIS,Met Office,2021-03-11,10 EQUIPMENT MAINTENANCE,SERVICES,BUSINESS SUPPORT CENTRE LTD,450521,52,927365208
BEIS,Met Office,2021-03-09,06 ACCOMMODATION,CHIEF FINANCIAL OFFICER,BUSINESS SUPPORT CENTRE LTD,453312,1027.28,927365208
BEIS,Met Office,2021-03-09,11 SERVICES,MARKETS,CACI LTD,453204,87520.49,380609841
BEIS,Met Office,2021-03-09,06 ACCOMMODATION,CHIEF FINANCIAL OFFICER,CALOR GAS LIMITED,453180,899.62,207610984
BEIS,Met Office,2021-03-11,06 ACCOMMODATION,CHIEF FINANCIAL OFFICER,CALOR GAS LIMITED,453516,537.69,207610984
BEIS,Met Office,2021-03-23,11 SERVICES,PROGRAMMES,CAMBRIDGE ECONOMETRICS LTD,453962,144728.34,1916825
BEIS,Met Office,2021-03-23,11 SERVICES,PROGRAMMES,CAMBRIDGE ECONOMETRICS LTD,453964,38152,1916825
BEIS,Met Office,2021-03-04,INFORMATION TECHNOLOGY,PROGRAMMES,Campbell Scientific Ltd,452921,144,428453933
BEIS,Met Office,2021-03-04,11 SERVICES,PROGRAMMES,Campbell Scientific Ltd,452921,1242,428453933
BEIS,Met Office,2021-03-04,11 SERVICES,PROGRAMMES,Campbell Scientific Ltd,452921,56,428453933
BEIS,Met Office,2021-03-09,INFORMATION TECHNOLOGY,PROGRAMMES,Campbell Scientific Ltd,452922,5176.8,428453933
BEIS,Met Office,2021-03-11,STOCK,SERVICES,Campbell Scientific Ltd,452923,0,428453933
BEIS,Met Office,2021-03-11,STOCK,SERVICES,Campbell Scientific Ltd,452923,0,428453933
BEIS,Met Office,2021-03-11,STOCK,SERVICES,Campbell Scientific Ltd,452923,0,428453933
BEIS,Met Office,2021-03-11,STOCK,SERVICES,Campbell Scientific Ltd,452923,0,428453933
BEIS,Met Office,2021-03-11,STOCK,SERVICES,Campbell Scientific Ltd,452923,0,428453933
BEIS,Met Office,2021-03-11,TRADE CREDITORS,SERVICES,Campbell Scientific Ltd,452923,7295.4,428453933
BEIS,Met Office,2021-03-11,TRADE CREDITORS,SERVICES,Campbell Scientific Ltd,452923,567,428453933
BEIS,Met Office,2021-03-11,TRADE CREDITORS,SERVICES,Campbell Scientific Ltd,452923,8680.5,428453933
BEIS,Met Office,2021-03-11,TRADE CREDITORS,SERVICES,Campbell Scientific Ltd,452923,594,428453933
BEIS,Met Office,2021-03-11,TRADE CREDITORS,SERVICES,Campbell Scientific Ltd,452923,918,428453933
BEIS,Met Office,2021-03-11,11 SERVICES,SERVICES,Campbell Scientific Ltd,452923,66,428453933
BEIS,Met Office,2021-03-09,STOCK,SERVICES,Campbell Scientific Ltd,452924,0,428453933
BEIS,Met Office,2021-03-09,TRADE CREDITORS,SERVICES,Campbell Scientific Ltd,452924,364.5,428453933
BEIS,Met Office,2021-03-09,11 SERVICES,SERVICES,Campbell Scientific Ltd,452924,16,428453933
BEIS,Met Office,2021-03-04,07 EQUIPMENT,SERVICES,Campbell Scientific Ltd,453051,17,428453933
BEIS,Met Office,2021-03-04,07 EQUIPMENT,SERVICES,Campbell Scientific Ltd,453051,2970,428453933
BEIS,Met Office,2021-03-16,INFORMATION TECHNOLOGY,PROGRAMMES,Campbell Scientific Ltd,453271,144,428453933
BEIS,Met Office,2021-03-16,11 SERVICES,PROGRAMMES,Campbell Scientific Ltd,453271,1242,428453933
BEIS,Met Office,2021-03-16,11 SERVICES,PROGRAMMES,Campbell Scientific Ltd,453271,74,428453933
BEIS,Met Office,2021-03-04,07 EQUIPMENT,SCIENCE,CAMTEC ENGINEERING LTD,452969,20,527033861
BEIS,Met Office,2021-03-04,07 EQUIPMENT,SCIENCE,CAMTEC ENGINEERING LTD,452969,112,527033861
BEIS,Met Office,2021-03-04,07 EQUIPMENT,SCIENCE,CAMTEC ENGINEERING LTD,452969,64,527033861
BEIS,Met Office,2021-03-04,07 EQUIPMENT,SCIENCE,CAMTEC ENGINEERING LTD,452969,690,527033861
BEIS,Met Office,2021-03-04,07 EQUIPMENT,SCIENCE,CAMTEC ENGINEERING LTD,452969,168,527033861
BEIS,Met Office,2021-03-04,07 EQUIPMENT,SCIENCE,CAMTEC ENGINEERING LTD,452969,118,527033861
BEIS,Met Office,2021-03-04,07 EQUIPMENT,SCIENCE,CAMTEC ENGINEERING LTD,452969,66,527033861
BEIS,Met Office,2021-03-04,07 EQUIPMENT,SCIENCE,CAMTEC ENGINEERING LTD,452969,66,527033861
BEIS,Met Office,2021-03-04,07 EQUIPMENT,SCIENCE,CAMTEC ENGINEERING LTD,452969,48,527033861
BEIS,Met Office,2021-03-04,07 EQUIPMENT,SCIENCE,CAMTEC ENGINEERING LTD,452969,74,527033861
BEIS,Met Office,2021-03-04,07 EQUIPMENT,SCIENCE,CAMTEC ENGINEERING LTD,452969,82,527033861
BEIS,Met Office,2021-03-04,07 EQUIPMENT,SCIENCE,CAMTEC ENGINEERING LTD,452969,56,527033861
BEIS,Met Office,2021-03-04,07 EQUIPMENT,SCIENCE,CAMTEC ENGINEERING LTD,452969,46,527033861
BEIS,Met Office,2021-03-04,07 EQUIPMENT,SCIENCE,CAMTEC ENGINEERING LTD,452969,220,527033861
BEIS,Met Office,2021-03-09,13 MISCELLANEOUS,CHIEF FINANCIAL OFFICER,CANON UK LTD,453210,949.14,523797128
BEIS,Met Office,2021-03-11,13 MISCELLANEOUS,CHIEF FINANCIAL OFFICER,CANON UK LTD,453442,603.05,523797128
BEIS,Met Office,2021-03-23,13 MISCELLANEOUS,CHIEF FINANCIAL OFFICER,CANON UK LTD,453963,8.15,523797128
BEIS,Met Office,2021-03-04,06 ACCOMMODATION,CHIEF FINANCIAL OFFICER,CARDIFF EXECUTIVE CENTRE LTD,452955,2470,864497378
BEIS,Met Office,2021-03-02,13 MISCELLANEOUS,CHIEF FINANCIAL OFFICER,CARDIFF EXECUTIVE CENTRE LTD,452956,1.92,864497378
BEIS,Met Office,2021-03-04,11 SERVICES,PEOPLE,CATALYST IT,453068,1301.87,978169262
BEIS,Met Office,2021-03-09,06 ACCOMMODATION,CHIEF FINANCIAL OFFICER,CBRE,452059,-53.2,863613615
BEIS,Met Office,2021-03-09,06 ACCOMMODATION,CHIEF FINANCIAL OFFICER,CBRE,452369,-2.3,863613615
BEIS,Met Office,2021-03-09,13 MISCELLANEOUS,CHIEF FINANCIAL OFFICER,CBRE,453184,105.33,863613615
BEIS,Met Office,2021-03-23,06 ACCOMMODATION,CHIEF FINANCIAL OFFICER,CBRE,454004,4499.3,863613615
BEIS,Met Office,2021-03-16,06 ACCOMMODATION,CHIEF FINANCIAL OFFICER,CBRE MANAGED SERVICES LTD,453639,4487.37,853936883
BEIS,Met Office,2021-03-16,06 ACCOMMODATION,CHIEF FINANCIAL OFFICER,CBRE MANAGED SERVICES LTD,453640,582.37,853936883
BEIS,Met Office,2021-03-16,06 ACCOMMODATION,CHIEF FINANCIAL OFFICER,CBRE MANAGED SERVICES LTD,453641,26492.74,853936883
BEIS,Met Office,2021-03-23,06 ACCOMMODATION,CHIEF FINANCIAL OFFICER,CBRE MANAGED SERVICES LTD,453952,3241.39,853936883
BEIS,Met Office,2021-03-23,06 ACCOMMODATION,CHIEF FINANCIAL OFFICER,CBRE MANAGED SERVICES LTD,453952,9186.48,853936883
BEIS,Met Office,2021-03-23,06 ACCOMMODATION,CHIEF FINANCIAL OFFICER,CBRE MANAGED SERVICES LTD,453952,1304.94,853936883
BEIS,Met Office,2021-03-23,06 ACCOMMODATION,CHIEF FINANCIAL OFFICER,CBRE MANAGED SERVICES LTD,453961,26492.74,853936883
BEIS,Met Office,2021-03-23,06 ACCOMMODATION,CHIEF FINANCIAL OFFICER,CBRE MANAGED SERVICES LTD,453981,141920.1,853936883
BEIS,Met Office,2021-03-23,06 ACCOMMODATION,CHIEF FINANCIAL OFFICER,CBRE MANAGED SERVICES LTD,453984,38132.6,853936883
BEIS,Met Office,2021-03-25,FIXTURE & FITTINGS,CHIEF FINANCIAL OFFICER,CBRE MANAGED SERVICES LTD,453985,12701.85,853936883
BEIS,Met Office,2021-03-25,06 ACCOMMODATION,CHIEF FINANCIAL OFFICER,CBRE MANAGED SERVICES LTD,453985,1037.53,853936883
BEIS,Met Office,2021-03-23,08 SOFTWARE LICENCES,CHIEF FINANCIAL OFFICER,CEMAR,453979,90,915042161
BEIS,Met Office,2021-03-23,08 SOFTWARE LICENCES,CHIEF FINANCIAL OFFICER,CEMAR,453980,450,915042161
BEIS,Met Office,2021-03-17,11 SERVICES,MARKETS,CENTRO INTERNACIONAL DE AGRICULTURA TROPICAL,453642,89354,na
BEIS,Met Office,2021-03-17,11 SERVICES,MARKETS,CENTRO INTERNACIONAL DE AGRICULTURA TROPICAL,453687,8763.25,na
BEIS,Met Office,2021-03-17,11 SERVICES,MARKETS,CENTRO INTERNACIONAL DE AGRICULTURA TROPICAL,453821,-89354,na
BEIS,Met Office,2021-03-02,11 SERVICES,MARKETS,CENTRO INTERNACIONAL MEJORAMIENTO DE MAIZ Y T,448669,44128,CIM890330FI8
BEIS,Met Office,2021-03-02,11 SERVICES,MARKETS,CENTRO INTERNACIONAL MEJORAMIENTO DE MAIZ Y T,452913,254017,CIM890330FI8
BEIS,Met Office,2021-03-18,11 SERVICES,MARKETS,CENTRO INTERNACIONAL MEJORAMIENTO DE MAIZ Y T,453822,89354,CIM890330FI8
BEIS,Met Office,2021-03-16,11 SERVICES,MARKETS,Cgi It Uk Limited,453619,3612.26,232615194
BEIS,Met Office,2021-03-16,11 SERVICES,MARKETS,Cgi It Uk Limited,453620,186682.7,232615194
BEIS,Met Office,2021-03-04,03 STAFF COSTS T&S,SERVICES,CHARLIE'S TRAVEL LTD,453000,381,783848277
BEIS,Met Office,2021-03-04,03 STAFF COSTS T&S,SERVICES,CHARLIE'S TRAVEL LTD,453000,611,783848277
BEIS,Met Office,2021-03-31,11 SERVICES,OFFICE OF THE CEO,CHARTERED INSTITUTE OF INTERNAL AUDITORS,454343,13325,354 3163 68
BEIS,Met Office,2021-03-16,06 ACCOMMODATION,CHIEF FINANCIAL OFFICER,Cheshire East Borough Council,453709,1172.65,N/A
BEIS,Met Office,2021-03-16,06 ACCOMMODATION,CHIEF FINANCIAL OFFICER,CITY OF CARLISLE,453672,499,257225166
BEIS,Met Office,2021-03-11,08 SOFTWARE LICENCES,TECHNOLOGY AND CIO,CLEARVISION (CM) LIMITED,453247,6328.35,881364801
BEIS,Met Office,2021-03-02,11 SERVICES,TECHNOLOGY AND CIO,CLOUDREACH EUROPE LIMITED,452813,7532.14,978187168
BEIS,Met Office,2021-03-03,10 EQUIPMENT MAINTENANCE,SERVICES,COMMUNICATIONS & POWER IND. EUROPE LTD,10107,1093.67,664103850
BEIS,Met Office,2021-03-02,10 EQUIPMENT MAINTENANCE,TECHNOLOGY AND CIO,COMPUTACENTER (UK) LTD,452917,1524.62,490334648
BEIS,Met Office,2021-03-02,10 EQUIPMENT MAINTENANCE,TECHNOLOGY AND CIO,COMPUTACENTER (UK) LTD,452936,3370.6,490334648
BEIS,Met Office,2021-03-04,10 EQUIPMENT MAINTENANCE,TECHNOLOGY AND CIO,COMPUTACENTER (UK) LTD,452978,3023.52,490334648
BEIS,Met Office,2021-03-04,08 SOFTWARE LICENCES,TECHNOLOGY AND CIO,COMPUTACENTER (UK) LTD,452979,246253.04,490334648
BEIS,Met Office,2021-03-04,07 EQUIPMENT,TECHNOLOGY AND CIO,COMPUTACENTER (UK) LTD,452980,2927.96,490334648
BEIS,Met Office,2021-03-04,07 EQUIPMENT,TECHNOLOGY AND CIO,COMPUTACENTER (UK) LTD,452980,5437.64,490334648
BEIS,Met Office,2021-03-11,07 EQUIPMENT,TECHNOLOGY AND CIO,COMPUTACENTER (UK) LTD,453332,3346.24,490334648
BEIS,Met Office,2021-03-11,10 EQUIPMENT MAINTENANCE,TECHNOLOGY AND CIO,COMPUTACENTER (UK) LTD,453470,73.16,490334648
BEIS,Met Office,2021-03-16,08 SOFTWARE LICENCES,TECHNOLOGY AND CIO,COMPUTACENTER (UK) LTD,453657,213550.69,490334648
BEIS,Met Office,2021-03-30,INFORMATION TECHNOLOGY,PROGRAMMES,COMPUTACENTER (UK) LTD,453658,14344.28,490334648
BEIS,Met Office,2021-03-25,INFORMATION TECHNOLOGY,PROGRAMMES,COMPUTACENTER (UK) LTD,453685,750.39,490334648
BEIS,Met Office,2021-03-30,INFORMATION TECHNOLOGY,PROGRAMMES,COMPUTACENTER (UK) LTD,453686,8012.64,490334648
BEIS,Met Office,2021-03-25,INFORMATION TECHNOLOGY,PROGRAMMES,COMPUTACENTER (UK) LTD,453913,747.22,490334648
BEIS,Met Office,2021-03-25,INFORMATION TECHNOLOGY,PROGRAMMES,COMPUTACENTER (UK) LTD,453914,5977.76,490334648
BEIS,Met Office,2021-03-30,INFORMATION TECHNOLOGY,TECHNOLOGY AND CIO,COMPUTACENTER (UK) LTD,454060,103241.05,490334648
BEIS,Met Office,2021-03-30,08 SOFTWARE LICENCES,TECHNOLOGY AND CIO,COMPUTACENTER (UK) LTD,454063,2698.56,490334648
BEIS,Met Office,2021-03-30,07 EQUIPMENT,TECHNOLOGY AND CIO,COMPUTACENTER (UK) LTD,454064,207.04,490334648
BEIS,Met Office,2021-03-25,INFORMATION TECHNOLOGY,TECHNOLOGY AND CIO,COMPUTACENTER (UK) LTD,454137,243560,490334648
BEIS,Met Office,2021-03-25,INFORMATION TECHNOLOGY,TECHNOLOGY AND CIO,COMPUTACENTER (UK) LTD,454138,1662.1,490334648
BEIS,Met Office,2021-03-25,07 EQUIPMENT,TECHNOLOGY AND CIO,COMPUTACENTER (UK) LTD,454139,9792,490334648
BEIS,Met Office,2021-03-30,10 EQUIPMENT MAINTENANCE,TECHNOLOGY AND CIO,COMPUTACENTER (UK) LTD,454198,2949.28,490334648
BEIS,Met Office,2021-03-30,INFORMATION TECHNOLOGY,PROGRAMMES,COMPUTACENTER (UK) LTD,454221,-14344.28,490334648
BEIS,Met Office,2021-03-30,07 EQUIPMENT,TECHNOLOGY AND CIO,COMPUTACENTER (UK) LTD,454268,458.6,490334648
BEIS,Met Office,2021-03-04,08 SOFTWARE LICENCES,TECHNOLOGY AND CIO,COMPUWARE UK LIMITED,452992,6466,GB206253636
BEIS,Met Office,2021-03-10,11 SERVICES,MARKETS,CONSULTEC,22348,3043.13,400005915
BEIS,Met Office,2021-03-11,06 ACCOMMODATION,CHIEF FINANCIAL OFFICER,CORBETT FARMS LTD,453457,100,133425301
BEIS,Met Office,2021-03-30,06 ACCOMMODATION,CHIEF FINANCIAL OFFICER,CORNWALL COUNCIL - KERRIER DIVISION,453863,18213.5,-
BEIS,Met Office,2021-03-11,06 ACCOMMODATION,CHIEF FINANCIAL OFFICER,CORONA ENERGY LTD,453429,17362.43,577704800
BEIS,Met Office,2021-03-11,06 ACCOMMODATION,CHIEF FINANCIAL OFFICER,CORONA ENERGY LTD,453430,858.21,577704800
BEIS,Met Office,2021-03-04,06 ACCOMMODATION,CHIEF FINANCIAL OFFICER,CORPORATE MOVES C/O SPACE SOLUTIONS,453061,450,907839882
BEIS,Met Office,2021-03-25,06 ACCOMMODATION,CHIEF FINANCIAL OFFICER,COUNTRYWIDE GROUNDS MAINTENANCE LTD,452550,106,611731279
BEIS,Met Office,2021-03-09,06 ACCOMMODATION,CHIEF FINANCIAL OFFICER,COUNTRYWIDE GROUNDS MAINTENANCE LTD,453264,131.81,611731279
BEIS,Met Office,2021-03-09,06 ACCOMMODATION,CHIEF FINANCIAL OFFICER,COUNTRYWIDE GROUNDS MAINTENANCE LTD,453264,176.29,611731279
BEIS,Met Office,2021-03-02,13 MISCELLANEOUS,MARKETS,CRANFIELD UNIVERSITY,451435,750,491358622
BEIS,Met Office,2021-03-18,06 ACCOMMODATION,CHIEF FINANCIAL OFFICER,DALCOUR MACLAREN LTD,453852,1500,823 6484 20
BEIS,Met Office,2021-03-10,11 SERVICES,CHIEF FINANCIAL OFFICER,DBS FINANCE RECEIPTS CTS,22332,168.73,888805068
BEIS,Met Office,2021-03-17,11 SERVICES,CHIEF FINANCIAL OFFICER,DBS FINANCE RECEIPTS CTS,22361,168.73,888805068
BEIS,Met Office,2021-03-24,11 SERVICES,CHIEF FINANCIAL OFFICER,DBS FINANCE RECEIPTS CTS,22373,167,888805068
BEIS,Met Office,2021-03-02,03 STAFF COSTS T&S,SERVICES,DBS FINANCE RECEIPTS CTS,452545,4015,888805068
BEIS,Met Office,2021-03-18,03 STAFF COSTS T&S,SERVICES,DBS FINANCE RECEIPTS CTS,453341,2439,888805068
BEIS,Met Office,2021-03-18,11 SERVICES,MARKETS,DBS FINANCE RECEIPTS CTS,453845,12710.83,888805068
BEIS,Met Office,2021-03-02,11 SERVICES,MARKETS,DECOM NORTH SEA,452019,1197,986674743
BEIS,Met Office,2021-03-02,08 SOFTWARE LICENCES,SERVICES,DEEPCRAWL,452926,28719.99,GB 988965031
BEIS,Met Office,2021-03-24,11 SERVICES,MARKETS,DELTARES,22355,2919.3,NL800097476B01
BEIS,Met Office,2021-03-10,13 MISCELLANEOUS,CHIEF FINANCIAL OFFICER,DEMSTAR BUSINESS SOLUTIONS LTD,22291,94.61,10156145J
BEIS,Met Office,2021-03-02,11 SERVICES,MARKETS,DESIGNAMITE LTD,452925,455,817819989
BEIS,Met Office,2021-03-10,11 SERVICES,MARKETS,DH CONSULTANCY,22303,2060.95,BE0890636479
BEIS,Met Office,2021-03-23,PAYE AND VAT,OTHER,DHL INTERNATIONAL (UK) LTD,453947,1160.8,751812341
BEIS,Met Office,2021-03-23,11 SERVICES,SERVICES,DHL INTERNATIONAL (UK) LTD,453947,34.05,751812341
BEIS,Met Office,2021-03-23,PAYE AND VAT,OTHER,DHL INTERNATIONAL (UK) LTD,453948,1174.34,751812341
BEIS,Met Office,2021-03-23,11 SERVICES,SERVICES,DHL INTERNATIONAL (UK) LTD,453948,29.36,751812341
BEIS,Met Office,2021-03-02,11 SERVICES,CHIEF FINANCIAL OFFICER,DIGITAL COMMUNICATIONS SYSTEMS LIMITED,452932,4065.85,GB 556 1971 19
BEIS,Met Office,2021-03-25,11 SERVICES,CHIEF FINANCIAL OFFICER,DIGITAL COMMUNICATIONS SYSTEMS LIMITED,454007,3847.24,GB 556 1971 19
BEIS,Met Office,2021-03-09,08 SOFTWARE LICENCES,TECHNOLOGY AND CIO,DILIGENT BOARDBOOKS LIMITED,448740,165,929451011
BEIS,Met Office,2021-03-31,08 SOFTWARE LICENCES,TECHNOLOGY AND CIO,DILIGENT BOARDBOOKS LIMITED,453662,495,929451011
BEIS,Met Office,2021-03-24,06 ACCOMMODATION,CHIEF FINANCIAL OFFICER,DSTL,454161,-1750,888805166
BEIS,Met Office,2021-03-04,11 SERVICES,CHIEF FINANCIAL OFFICER,DUN & BRADSTREET LTD,452976,26747,505189158
BEIS,Met Office,2021-03-09,13 MISCELLANEOUS,CHIEF FINANCIAL OFFICER,EAST ANGLIAN WATER COOLER CO,452999,32.7,676668178
BEIS,Met Office,2021-03-17,12 INTERNATIONAL,MARKETS,ECMWF,450746,6781601,NOTVATREG
BEIS,Met Office,2021-03-04,11 SERVICES,SCIENCE,ECMWF,452585,520,NOTVATREG
BEIS,Met Office,2021-03-24,11 SERVICES,MARKETS,ECOMET,22346,191248.35,EXEMPT
BEIS,Met Office,2021-03-02,06 ACCOMMODATION,CHIEF FINANCIAL OFFICER,EDEN SPRINGS UK LTD,452957,251.72,232160411
BEIS,Met Office,2021-03-30,13 MISCELLANEOUS,CHIEF FINANCIAL OFFICER,EDEN SPRINGS UK LTD,454250,327.08,232160411
BEIS,Met Office,2021-03-25,11 SERVICES,PEOPLE,EDENRED - CHILDCARE VOUCHERS,454146,15770.44,649 503 520
BEIS,Met Office,2021-03-23,06 ACCOMMODATION,CHIEF FINANCIAL OFFICER,EDF ENERGY CUSTOMERS PLC,452145,104046.04,523041202
BEIS,Met Office,2021-03-11,06 ACCOMMODATION,CHIEF FINANCIAL OFFICER,EDF ENERGY CUSTOMERS PLC,452422,118018.26,523041202
BEIS,Met Office,2021-03-11,06 ACCOMMODATION,CHIEF FINANCIAL OFFICER,EDF ENERGY CUSTOMERS PLC,452423,-148555.93,523041202
BEIS,Met Office,2021-03-11,06 ACCOMMODATION,CHIEF FINANCIAL OFFICER,EDF ENERGY CUSTOMERS PLC,453421,-110253.24,523041202
BEIS,Met Office,2021-03-11,06 ACCOMMODATION,CHIEF FINANCIAL OFFICER,EDF ENERGY CUSTOMERS PLC,453422,-103047.41,523041202
BEIS,Met Office,2021-03-11,06 ACCOMMODATION,CHIEF FINANCIAL OFFICER,EDF ENERGY CUSTOMERS PLC,453423,4453.08,523041202
BEIS,Met Office,2021-03-11,06 ACCOMMODATION,CHIEF FINANCIAL OFFICER,EDF ENERGY CUSTOMERS PLC,453424,110293.04,523041202
BEIS,Met Office,2021-03-11,06 ACCOMMODATION,CHIEF FINANCIAL OFFICER,EDF ENERGY CUSTOMERS PLC,453425,104110.2,523041202
BEIS,Met Office,2021-03-11,06 ACCOMMODATION,CHIEF FINANCIAL OFFICER,EDF ENERGY CUSTOMERS PLC,453426,353677.8,523041202
BEIS,Met Office,2021-03-11,06 ACCOMMODATION,CHIEF FINANCIAL OFFICER,EDF ENERGY CUSTOMERS PLC,453427,92261.87,523041202
BEIS,Met Office,2021-03-11,06 ACCOMMODATION,CHIEF FINANCIAL OFFICER,EDF ENERGY CUSTOMERS PLC,453428,99212.56,523041202
BEIS,Met Office,2021-03-23,06 ACCOMMODATION,CHIEF FINANCIAL OFFICER,EDF ENERGY CUSTOMERS PLC,453923,4029.08,523041202
BEIS,Met Office,2021-03-31,11 SERVICES,CHIEF FINANCIAL OFFICER,EIR,22375,208.7,4736919B
BEIS,Met Office,2021-03-10,10 EQUIPMENT MAINTENANCE,SERVICES,ELASTICSEARCH LTD,10148,64.21,155790484
BEIS,Met Office,2021-03-09,11 SERVICES,TECHNOLOGY AND CIO,ELASTICSEARCH LTD,453103,13604.13,155790484
BEIS,Met Office,2021-03-04,10 EQUIPMENT MAINTENANCE,SERVICES,ELECTRONIC TEST & CALIBRATION LTD,452975,3220,585654593
BEIS,Met Office,2021-03-11,13 MISCELLANEOUS,SCIENCE,ELSEVIER B.V.,453471,41773.37,NL00503301980
BEIS,Met Office,2021-03-11,13 MISCELLANEOUS,SERVICES,ELSEVIER B.V.,453471,41773.37,NL00503301980
BEIS,Met Office,2021-03-26,08 SOFTWARE LICENCES,TECHNOLOGY AND CIO,ENTCORP UK LTD,454204,-4861.8,314149679
BEIS,Met Office,2021-03-09,03 STAFF COSTS T&S,CHIEF FINANCIAL OFFICER,ENTERPRISE RENT A CAR UK LTD,453288,133.4,215557314
BEIS,Met Office,2021-03-09,03 STAFF COSTS T&S,CHIEF FINANCIAL OFFICER,ENTERPRISE RENT A CAR UK LTD,453289,423.64,215557314
BEIS,Met Office,2021-03-09,03 STAFF COSTS T&S,CHIEF FINANCIAL OFFICER,ENTERPRISE RENT A CAR UK LTD,453290,631.63,215557314
BEIS,Met Office,2021-03-16,03 STAFF COSTS T&S,CHIEF FINANCIAL OFFICER,ENTERPRISE RENT A CAR UK LTD,453699,253.54,215557314
BEIS,Met Office,2021-03-23,03 STAFF COSTS T&S,CHIEF FINANCIAL OFFICER,ENTERPRISE RENT A CAR UK LTD,453967,526.6,215557314
BEIS,Met Office,2021-03-30,03 STAFF COSTS T&S,CHIEF FINANCIAL OFFICER,ENTERPRISE RENT A CAR UK LTD,454280,532.88,215557314
BEIS,Met Office,2021-03-30,03 STAFF COSTS T&S,CHIEF FINANCIAL OFFICER,ENTERPRISE RENT A CAR UK LTD,454281,1506.12,215557314
BEIS,Met Office,2021-03-18,SOFTWARE LICENCES,MARKETS,Esri (Uk) Ltd,453005,8864.5,787430791
BEIS,Met Office,2021-03-30,13 MISCELLANEOUS,SERVICES,EUROFINS E&E HURSLEY LIMITED,451491,5800,GB887127683
BEIS,Met Office,2021-03-16,13 MISCELLANEOUS,SERVICES,EUROFINS E&E HURSLEY LIMITED,451885,3025,GB887127683
BEIS,Met Office,2021-03-25,13 MISCELLANEOUS,SERVICES,EUROFINS E&E HURSLEY LIMITED,454059,675,GB887127683
BEIS,Met Office,2021-03-10,12 INTERNATIONAL,SCIENCE,EUROGOOS AISBL,22317,10376.67,0521.723.012
BEIS,Met Office,2021-03-17,12 INTERNATIONAL,MARKETS,EUROPEAN METEOROLOGICAL SOCIETY,22309,873.05,-
BEIS,Met Office,2021-03-03,11 SERVICES,SERVICES,"EUTELSAT, S.A.",22237,3078.49,-
BEIS,Met Office,2021-03-03,11 SERVICES,SERVICES,"EUTELSAT, S.A.",22238,3966.15,-
BEIS,Met Office,2021-03-03,11 SERVICES,SERVICES,"EUTELSAT, S.A.",22276,-3903.31,-
BEIS,Met Office,2021-03-03,11 SERVICES,SERVICES,"EUTELSAT, S.A.",22277,-3029.72,-
BEIS,Met Office,2021-03-03,11 SERVICES,SERVICES,"EUTELSAT, S.A.",22288,3903.31,-
BEIS,Met Office,2021-03-03,11 SERVICES,SERVICES,"EUTELSAT, S.A.",22289,3029.72,-
BEIS,Met Office,2021-03-10,11 SERVICES,SERVICES,"EUTELSAT, S.A.",22301,3777.4,-
BEIS,Met Office,2021-03-10,11 SERVICES,SERVICES,"EUTELSAT, S.A.",22302,3029.72,-
BEIS,Met Office,2021-03-30,13 MISCELLANEOUS,PEOPLE,EVENBREAK,454225,8100,175722982
BEIS,Met Office,2021-03-30,06 ACCOMMODATION,CHIEF FINANCIAL OFFICER,Exeter City Council,453738,5613.75,142335594
BEIS,Met Office,2021-03-18,06 ACCOMMODATION,CHIEF FINANCIAL OFFICER,Exeter City Council,453743,140288,142335594
BEIS,Met Office,2021-03-04,11 SERVICES,PEOPLE,Exeter College,453053,3500,125451632
BEIS,Met Office,2021-03-11,11 SERVICES,CHIEF FINANCIAL OFFICER,EXPONENTIAL-E,453302,2030.19,GB798572653
BEIS,Met Office,2021-03-25,11 SERVICES,CHIEF FINANCIAL OFFICER,EXPONENTIAL-E,454133,1976.4,GB798572653
BEIS,Met Office,2021-03-25,11 SERVICES,CHIEF FINANCIAL OFFICER,EXPONENTIAL-E,454134,-1975.43,GB798572653
BEIS,Met Office,2021-03-30,06 ACCOMMODATION,CHIEF FINANCIAL OFFICER,FAIR ISLE ELECTRICITY COMPANY LTD,454241,121.14,774548783
BEIS,Met Office,2021-03-09,03 STAFF COSTS T&S,SERVICES,FALKLAND ISLAND COMPANY LTD,453205,700,N/A
BEIS,Met Office,2021-03-09,03 STAFF COSTS T&S,SERVICES,FALKLAND ISLAND COMPANY LTD,453206,700,N/A
BEIS,Met Office,2021-03-09,03 STAFF COSTS T&S,SERVICES,FALKLAND ISLAND COMPANY LTD,453207,700,N/A
BEIS,Met Office,2021-03-16,03 STAFF COSTS T&S,SERVICES,FALKLAND ISLAND COMPANY LTD,453519,700,N/A
BEIS,Met Office,2021-03-16,03 STAFF COSTS T&S,SERVICES,FALKLAND ISLAND COMPANY LTD,453520,700,N/A
BEIS,Met Office,2021-03-16,03 STAFF COSTS T&S,SERVICES,FALKLAND ISLAND COMPANY LTD,453521,700,N/A
BEIS,Met Office,2021-03-04,11 SERVICES,MARKETS,FCDO,452935,3065.34,888813560
BEIS,Met Office,2021-03-16,11 SERVICES,MARKETS,FCDO,453707,24.7,888813560
BEIS,Met Office,2021-03-23,11 SERVICES,MARKETS,FCDO,453986,2995.05,888813560
BEIS,Met Office,2021-03-09,04 CONTRACTORS,TECHNOLOGY AND CIO,FDM GROUP LIMITED,453241,4050,583540529
BEIS,Met Office,2021-03-09,04 CONTRACTORS,TECHNOLOGY AND CIO,FDM GROUP LIMITED,453242,5130,583540529
BEIS,Met Office,2021-03-09,04 CONTRACTORS,TECHNOLOGY AND CIO,FDM GROUP LIMITED,453243,3000,583540529
BEIS,Met Office,2021-03-09,04 CONTRACTORS,TECHNOLOGY AND CIO,FDM GROUP LIMITED,453244,5400,583540529
BEIS,Met Office,2021-03-09,04 CONTRACTORS,TECHNOLOGY AND CIO,FDM GROUP LIMITED,453245,5400,583540529
BEIS,Met Office,2021-03-09,04 CONTRACTORS,TECHNOLOGY AND CIO,FDM GROUP LIMITED,453246,5400,583540529
BEIS,Met Office,2021-03-09,11 SERVICES,TECHNOLOGY AND CIO,FLYFORM LTD,452101,13930,237333808
BEIS,Met Office,2021-03-09,11 SERVICES,TECHNOLOGY AND CIO,FLYFORM LTD,452101,21890,237333808
BEIS,Met Office,2021-03-09,11 SERVICES,TECHNOLOGY AND CIO,FLYFORM LTD,452101,6965,237333808
BEIS,Met Office,2021-03-09,11 SERVICES,TECHNOLOGY AND CIO,FLYFORM LTD,452101,12750,237333808
BEIS,Met Office,2021-03-09,11 SERVICES,TECHNOLOGY AND CIO,FLYFORM LTD,453186,995,237333808
BEIS,Met Office,2021-03-09,11 SERVICES,TECHNOLOGY AND CIO,FLYFORM LTD,453186,14925,237333808
BEIS,Met Office,2021-03-09,11 SERVICES,TECHNOLOGY AND CIO,FLYFORM LTD,453186,995,237333808
BEIS,Met Office,2021-03-09,11 SERVICES,TECHNOLOGY AND CIO,FLYFORM LTD,453299,2985,237333808
BEIS,Met Office,2021-03-16,06 ACCOMMODATION,CHIEF FINANCIAL OFFICER,FOX GROUNDS MAINTENANCE & LANDSCAPING LTD,443311,305.66,129495383
BEIS,Met Office,2021-03-09,06 ACCOMMODATION,CHIEF FINANCIAL OFFICER,FOX GROUNDS MAINTENANCE & LANDSCAPING LTD,453240,305.66,129495383
BEIS,Met Office,2021-03-02,11 SERVICES,CHIEF FINANCIAL OFFICER,FSI (FM SOLUTIONS) LTD,452949,3490,166398173
BEIS,Met Office,2021-03-16,11 SERVICES,CHIEF FINANCIAL OFFICER,FSI (FM SOLUTIONS) LTD,453712,2550,166398173
BEIS,Met Office,2021-03-30,06 ACCOMMODATION,CHIEF FINANCIAL OFFICER,FUTURE CLEANING SERVICES (SW) LTD.,442395,871.43,756916489
BEIS,Met Office,2021-03-30,06 ACCOMMODATION,CHIEF FINANCIAL OFFICER,FUTURE CLEANING SERVICES (SW) LTD.,454356,-871.43,756916489
BEIS,Met Office,2021-03-11,11 SERVICES,CHIEF FINANCIAL OFFICER,GAMMA BUSINESS COMMUNICATIONS LTD,453340,413.1,823820344
BEIS,Met Office,2021-03-11,11 SERVICES,CHIEF FINANCIAL OFFICER,GAMMA TELECOM LTD,453337,3255.24,823820344
BEIS,Met Office,2021-03-30,11 SERVICES,CHIEF FINANCIAL OFFICER,GAMMA TELECOM LTD,454239,103.8,823820344
BEIS,Met Office,2021-03-30,11 SERVICES,CHIEF FINANCIAL OFFICER,GAMMA TELECOM LTD,454239,27272.86,823820344
BEIS,Met Office,2021-03-09,11 SERVICES,CHIEF FINANCIAL OFFICER,GB GROUP PLC,453250,421.43,539716218
BEIS,Met Office,2021-03-09,04 CONTRACTORS,TECHNOLOGY AND CIO,GCS IT RECRUITMENT SPECIALISTS LTD,453269,12750,896156575
BEIS,Met Office,2021-03-09,04 CONTRACTORS,TECHNOLOGY AND CIO,GCS IT RECRUITMENT SPECIALISTS LTD,453269,1875,896156575
BEIS,Met Office,2021-03-09,04 CONTRACTORS,TECHNOLOGY AND CIO,GCS IT RECRUITMENT SPECIALISTS LTD,453270,455,896156575
BEIS,Met Office,2021-03-02,11 SERVICES,MARKETS,GEOSMART INFORMATION LTD,452952,5833,172271519
BEIS,Met Office,2021-03-18,STOCK,SERVICES,GH ZEAL LTD,452547,0,648929087
BEIS,Met Office,2021-03-18,TRADE CREDITORS,SERVICES,GH ZEAL LTD,452547,2394,648929087
BEIS,Met Office,2021-03-18,11 SERVICES,SERVICES,GH ZEAL LTD,452547,17.5,648929087
BEIS,Met Office,2021-03-25,STOCK,SERVICES,GH ZEAL LTD,453831,17.5,648929087
BEIS,Met Office,2021-03-25,STOCK,SERVICES,GH ZEAL LTD,453831,0,648929087
BEIS,Met Office,2021-03-25,TRADE CREDITORS,SERVICES,GH ZEAL LTD,453831,9900,648929087
BEIS,Met Office,2021-03-25,TRADE CREDITORS,SERVICES,GH ZEAL LTD,453831,4878.3,648929087
BEIS,Met Office,2021-03-16,11 SERVICES,CHIEF FINANCIAL OFFICER,GIBRALTAR NYNEX COMMUNICATIONS LTD,453523,702,NOVAT
BEIS,Met Office,2021-03-31,STOCK,SERVICES,GLOBAL INVACOM WAVEGUIDE,454208,0,807820628
BEIS,Met Office,2021-03-31,TRADE CREDITORS,SERVICES,GLOBAL INVACOM WAVEGUIDE,454208,25122.72,807820628
BEIS,Met Office,2021-03-10,11 SERVICES,MARKETS,Global Weather Corporation,10123,14383.01,-
BEIS,Met Office,2021-03-23,08 SOFTWARE LICENCES,PEOPLE,GO1 UK LEARNING LIMITED,453970,52500,323918793
BEIS,Met Office,2021-03-09,08 SOFTWARE LICENCES,TECHNOLOGY AND CIO,GOOGLE IRELAND LTD,453067,27.7,6388047V
BEIS,Met Office,2021-03-16,06 ACCOMMODATION,CHIEF FINANCIAL OFFICER,GOVERNMENT PROPERTY AGENCY,453676,163.16,888 8508 47
BEIS,Met Office,2021-03-16,06 ACCOMMODATION,CHIEF FINANCIAL OFFICER,GOVERNMENT PROPERTY AGENCY,453680,10206,888 8508 47
BEIS,Met Office,2021-03-23,06 ACCOMMODATION,CHIEF FINANCIAL OFFICER,GOVERNMENT PROPERTY AGENCY,453918,72.83,888 8508 47
BEIS,Met Office,2021-03-30,06 ACCOMMODATION,CHIEF FINANCIAL OFFICER,GOVERNMENT PROPERTY AGENCY,454006,64.41,888 8508 47
BEIS,Met Office,2021-03-30,06 ACCOMMODATION,CHIEF FINANCIAL OFFICER,GOVERNMENT PROPERTY AGENCY,454245,901.5,888 8508 47
BEIS,Met Office,2021-03-31,06 ACCOMMODATION,CHIEF FINANCIAL OFFICER,GOVERNMENT PROPERTY AGENCY,454246,216.97,888 8508 47
BEIS,Met Office,2021-03-30,06 ACCOMMODATION,CHIEF FINANCIAL OFFICER,GOVERNMENT PROPERTY AGENCY,454248,1437.43,888 8508 47
BEIS,Met Office,2021-03-16,11 SERVICES,PEOPLE,GRANICUS LLC,453617,27173.99,-
BEIS,Met Office,2021-03-02,11 SERVICES,PEOPLE,HAWK INCENTIVES LTD,452929,3496.5,238839422
BEIS,Met Office,2021-03-18,11 SERVICES,PEOPLE,HAWK INCENTIVES LTD,453152,2546.25,238839422
BEIS,Met Office,2021-03-18,11 SERVICES,PEOPLE,HAWK INCENTIVES LTD,453268,5853.75,238839422
BEIS,Met Office,2021-03-02,04 CONTRACTORS,TECHNOLOGY AND CIO,HAYS SPECIALIST RECRUITMENT LTD,452944,362.4,773695871
BEIS,Met Office,2021-03-02,04 CONTRACTORS,TECHNOLOGY AND CIO,HAYS SPECIALIST RECRUITMENT LTD,452945,566.25,773695871
BEIS,Met Office,2021-03-02,04 CONTRACTORS,MARKETS,HAYS SPECIALIST RECRUITMENT LTD,452946,183.08,773695871
BEIS,Met Office,2021-03-02,04 CONTRACTORS,PEOPLE,HAYS SPECIALIST RECRUITMENT LTD,452947,658.25,773695871
BEIS,Met Office,2021-03-09,04 CONTRACTORS,TECHNOLOGY AND CIO,HAYS SPECIALIST RECRUITMENT LTD,453234,558.7,773695871
BEIS,Met Office,2021-03-09,04 CONTRACTORS,TECHNOLOGY AND CIO,HAYS SPECIALIST RECRUITMENT LTD,453235,558.7,773695871
BEIS,Met Office,2021-03-09,04 CONTRACTORS,MARKETS,HAYS SPECIALIST RECRUITMENT LTD,453236,183.08,773695871
BEIS,Met Office,2021-03-09,04 CONTRACTORS,PEOPLE,HAYS SPECIALIST RECRUITMENT LTD,453237,817.75,773695871
BEIS,Met Office,2021-03-09,04 CONTRACTORS,PEOPLE,HAYS SPECIALIST RECRUITMENT LTD,453238,817.75,773695871
BEIS,Met Office,2021-03-09,04 CONTRACTORS,PEOPLE,HAYS SPECIALIST RECRUITMENT LTD,453239,658.25,773695871
BEIS,Met Office,2021-03-16,04 CONTRACTORS,PEOPLE,HAYS SPECIALIST RECRUITMENT LTD,453663,817.75,773695871
BEIS,Met Office,2021-03-16,04 CONTRACTORS,PEOPLE,HAYS SPECIALIST RECRUITMENT LTD,453664,658.25,773695871
BEIS,Met Office,2021-03-16,04 CONTRACTORS,TECHNOLOGY AND CIO,HAYS SPECIALIST RECRUITMENT LTD,453665,558.7,773695871
BEIS,Met Office,2021-03-16,04 CONTRACTORS,TECHNOLOGY AND CIO,HAYS SPECIALIST RECRUITMENT LTD,453666,543.6,773695871
BEIS,Met Office,2021-03-16,04 CONTRACTORS,MARKETS,HAYS SPECIALIST RECRUITMENT LTD,453667,183.08,773695871
BEIS,Met Office,2021-03-18,04 CONTRACTORS,PEOPLE,HAYS SPECIALIST RECRUITMENT LTD,453825,488.2,773695871
BEIS,Met Office,2021-03-18,04 CONTRACTORS,PEOPLE,HAYS SPECIALIST RECRUITMENT LTD,453826,366.15,773695871
BEIS,Met Office,2021-03-18,04 CONTRACTORS,PEOPLE,HAYS SPECIALIST RECRUITMENT LTD,453827,488.2,773695871
BEIS,Met Office,2021-03-23,04 CONTRACTORS,PEOPLE,HAYS SPECIALIST RECRUITMENT LTD,453955,634.67,773695871
BEIS,Met Office,2021-03-23,04 CONTRACTORS,PEOPLE,HAYS SPECIALIST RECRUITMENT LTD,453956,507.03,773695871
BEIS,Met Office,2021-03-23,04 CONTRACTORS,TECHNOLOGY AND CIO,HAYS SPECIALIST RECRUITMENT LTD,453957,558.7,773695871
BEIS,Met Office,2021-03-23,04 CONTRACTORS,MARKETS,HAYS SPECIALIST RECRUITMENT LTD,453958,183.08,773695871
BEIS,Met Office,2021-03-23,04 CONTRACTORS,PEOPLE,HAYS SPECIALIST RECRUITMENT LTD,453959,488.2,773695871
BEIS,Met Office,2021-03-23,04 CONTRACTORS,TECHNOLOGY AND CIO,HAYS SPECIALIST RECRUITMENT LTD,453960,558.71,773695871
BEIS,Met Office,2021-03-30,04 CONTRACTORS,TECHNOLOGY AND CIO,HAYS SPECIALIST RECRUITMENT LTD,454209,558.71,773695871
BEIS,Met Office,2021-03-30,04 CONTRACTORS,PEOPLE,HAYS SPECIALIST RECRUITMENT LTD,454210,634.67,773695871
BEIS,Met Office,2021-03-30,04 CONTRACTORS,PEOPLE,HAYS SPECIALIST RECRUITMENT LTD,454211,257.96,773695871
BEIS,Met Office,2021-03-30,04 CONTRACTORS,MARKETS,HAYS SPECIALIST RECRUITMENT LTD,454212,183.08,773695871
BEIS,Met Office,2021-03-30,04 CONTRACTORS,PEOPLE,HAYS SPECIALIST RECRUITMENT LTD,454213,266.86,773695871
BEIS,Met Office,2021-03-30,04 CONTRACTORS,TECHNOLOGY AND CIO,HAYS SPECIALIST RECRUITMENT LTD,454214,566.25,773695871
BEIS,Met Office,2021-03-04,13 MISCELLANEOUS,CHIEF FINANCIAL OFFICER,HEALIX INSURANCE SERVICES LTD,453114,11738.5,-
BEIS,Met Office,2021-03-04,13 MISCELLANEOUS,CHIEF FINANCIAL OFFICER,HEALIX INTERNATIONAL,453113,3036,127632909
BEIS,Met Office,2021-03-02,13 MISCELLANEOUS,PEOPLE,HEALTH MANAGEMENT LTD,452918,3839.83,792250621
BEIS,Met Office,2021-03-02,13 MISCELLANEOUS,PEOPLE,HEALTH MANAGEMENT LTD,452920,3203.6,792250621
BEIS,Met Office,2021-03-30,13 MISCELLANEOUS,PEOPLE,HEALTH MANAGEMENT LTD,454220,3313.86,792250621
BEIS,Met Office,2021-03-23,11 SERVICES,SERVICES,HITACHI CAPITAL VEHICLE SOLUTIONS,453944,29.61,GB 823 8248 22
BEIS,Met Office,2021-03-23,11 SERVICES,SERVICES,HITACHI CAPITAL VEHICLE SOLUTIONS,453945,35.72,GB 823 8248 22
BEIS,Met Office,2021-03-31,06 ACCOMMODATION,CHIEF FINANCIAL OFFICER,HM LAND REGISTRY,454207,6,888818153
BEIS,Met Office,2021-03-18,PAYE AND VAT,OTHER,HMRC,453720,6439839,-
BEIS,Met Office,2021-03-16,11 SERVICES,CHIEF FINANCIAL OFFICER,HMRC AR RECEIPTS,453634,104654.02,888848141
BEIS,Met Office,2021-03-16,12 INTERNATIONAL,MARKETS,HOWTOMOODLE LTD,453518,3390,GB 8337554 13
BEIS,Met Office,2021-03-17,11 SERVICES,TECHNOLOGY AND CIO,"IBL SOFTWARE ENGINEERING, SPOL S.R.O.",22304,17644.34,SK2020241883
BEIS,Met Office,2021-03-24,08 SOFTWARE LICENCES,MARKETS,"IBL SOFTWARE ENGINEERING, SPOL S.R.O.",22318,13622.84,SK2020241883
BEIS,Met Office,2021-03-31,08 SOFTWARE LICENCES,MARKETS,"IBL SOFTWARE ENGINEERING, SPOL S.R.O.",22326,9785.2,SK2020241883
BEIS,Met Office,2021-03-31,08 SOFTWARE LICENCES,MARKETS,"IBL SOFTWARE ENGINEERING, SPOL S.R.O.",22326,979.73,SK2020241883
BEIS,Met Office,2021-03-31,08 SOFTWARE LICENCES,MARKETS,"IBL SOFTWARE ENGINEERING, SPOL S.R.O.",22326,18610.56,SK2020241883
BEIS,Met Office,2021-03-31,08 SOFTWARE LICENCES,MARKETS,"IBL SOFTWARE ENGINEERING, SPOL S.R.O.",22326,74675.73,SK2020241883
BEIS,Met Office,2021-03-31,08 SOFTWARE LICENCES,MARKETS,"IBL SOFTWARE ENGINEERING, SPOL S.R.O.",22326,7468.61,SK2020241883
BEIS,Met Office,2021-03-31,08 SOFTWARE LICENCES,MARKETS,"IBL SOFTWARE ENGINEERING, SPOL S.R.O.",22326,49699.08,SK2020241883
BEIS,Met Office,2021-03-31,08 SOFTWARE LICENCES,MARKETS,"IBL SOFTWARE ENGINEERING, SPOL S.R.O.",22326,49699.08,SK2020241883
BEIS,Met Office,2021-03-31,08 SOFTWARE LICENCES,MARKETS,"IBL SOFTWARE ENGINEERING, SPOL S.R.O.",22326,4971.29,SK2020241883
BEIS,Met Office,2021-03-31,11 SERVICES,MARKETS,"IBL SOFTWARE ENGINEERING, SPOL S.R.O.",450559,126224.22,SK2020241883
BEIS,Met Office,2021-03-04,08 SOFTWARE LICENCES,TECHNOLOGY AND CIO,IBM UNITED KINGDOM LTD,453066,9579.7,107328000
BEIS,Met Office,2021-03-31,11 SERVICES,TECHNOLOGY AND CIO,IBM UNITED KINGDOM LTD,453828,6184.16,107328000
BEIS,Met Office,2021-03-10,11 SERVICES,MARKETS,IGAD CLIMATE PREDICTION & APPLICATIONS CNTR,452933,14213.18,-
BEIS,Met Office,2021-03-10,11 SERVICES,MARKETS,IGAD CLIMATE PREDICTION & APPLICATIONS CNTR,452933,81869.79,-
BEIS,Met Office,2021-03-10,11 SERVICES,MARKETS,IGAD CLIMATE PREDICTION & APPLICATIONS CNTR,452938,19344.32,-
BEIS,Met Office,2021-03-16,11 SERVICES,PROGRAMMES,IMPERIAL COLLEGE,452447,70000,649926678
BEIS,Met Office,2021-03-16,11 SERVICES,PROGRAMMES,IMPERIAL COLLEGE,452448,70000,649926678
BEIS,Met Office,2021-03-16,11 SERVICES,PROGRAMMES,IMPERIAL COLLEGE,452528,80000,649926678
BEIS,Met Office,2021-03-16,11 SERVICES,PROGRAMMES,IMPERIAL COLLEGE,452529,80000,649926678
BEIS,Met Office,2021-03-11,11 SERVICES,MARKETS,INK COPYWRITERS LTD,453254,1000,850847214
BEIS,Met Office,2021-03-09,06 ACCOMMODATION,SERVICES,INMARSAT SOLUTIONS (CANADA) INC,453176,56.56,766144223
BEIS,Met Office,2021-03-09,06 ACCOMMODATION,SERVICES,INMARSAT SOLUTIONS (CANADA) INC,453179,1516.8,766144223
BEIS,Met Office,2021-03-11,11 SERVICES,TECHNOLOGY AND CIO,INNOSIS LIMITED,453438,3977,-
BEIS,Met Office,2021-03-10,11 SERVICES,MARKETS,"INTELLOVATIONS, LLC",10140,2036.19,-
BEIS,Met Office,2021-03-16,11 SERVICES,CHIEF FINANCIAL OFFICER,INTEROUTE COMMUNICATIONS LIMITED,453711,4931.94,832 7071 39
BEIS,Met Office,2021-03-31,08 SOFTWARE LICENCES,TECHNOLOGY AND CIO,IP PERFORMANCE LTD,454252,1240,650541851
BEIS,Met Office,2021-03-02,10 EQUIPMENT MAINTENANCE,SERVICES,ISOTHERMAL TECHNOLOGY LTD,452846,538.14,325108979
BEIS,Met Office,2021-03-02,10 EQUIPMENT MAINTENANCE,SERVICES,ISOTHERMAL TECHNOLOGY LTD,452846,502,325108979
BEIS,Met Office,2021-03-02,10 EQUIPMENT MAINTENANCE,SERVICES,ISOTHERMAL TECHNOLOGY LTD,452847,800.83,325108979
BEIS,Met Office,2021-03-17,06 ACCOMMODATION,CHIEF FINANCIAL OFFICER,JAMES & MARCIA BENJAMIN,452958,520,-
BEIS,Met Office,2021-03-11,11 SERVICES,MARKETS,JCT Ltd,453195,1224,714 3761 44
BEIS,Met Office,2021-03-23,11 SERVICES,CHIEF FINANCIAL OFFICER,JERSEY TELECOM,453933,1283.61,NOTVATREG
BEIS,Met Office,2021-03-02,04 CONTRACTORS,MARKETS,JOBSEEKERS RECRUITMENT SERVICES LTD,452817,662.3,130 1297 14
BEIS,Met Office,2021-03-02,04 CONTRACTORS,CHIEF FINANCIAL OFFICER,JOBSEEKERS RECRUITMENT SERVICES LTD,452818,663.78,130 1297 14
BEIS,Met Office,2021-03-02,04 CONTRACTORS,OFFICE OF THE CEO,JOBSEEKERS RECRUITMENT SERVICES LTD,452819,662.3,130 1297 14
BEIS,Met Office,2021-03-02,04 CONTRACTORS,MARKETS,JOBSEEKERS RECRUITMENT SERVICES LTD,452820,528.05,130 1297 14
BEIS,Met Office,2021-03-02,04 CONTRACTORS,CHIEF FINANCIAL OFFICER,JOBSEEKERS RECRUITMENT SERVICES LTD,452822,403.65,130 1297 14
BEIS,Met Office,2021-03-09,04 CONTRACTORS,CHIEF FINANCIAL OFFICER,JOBSEEKERS RECRUITMENT SERVICES LTD,453192,663.78,130 1297 14
BEIS,Met Office,2021-03-09,04 CONTRACTORS,OFFICE OF THE CEO,JOBSEEKERS RECRUITMENT SERVICES LTD,453193,662.3,130 1297 14
BEIS,Met Office,2021-03-09,04 CONTRACTORS,MARKETS,JOBSEEKERS RECRUITMENT SERVICES LTD,453194,662.3,130 1297 14
BEIS,Met Office,2021-03-09,04 CONTRACTORS,MARKETS,JOBSEEKERS RECRUITMENT SERVICES LTD,453200,662.3,130 1297 14
BEIS,Met Office,2021-03-09,04 CONTRACTORS,CHIEF FINANCIAL OFFICER,JOBSEEKERS RECRUITMENT SERVICES LTD,453201,403.65,130 1297 14
BEIS,Met Office,2021-03-09,04 CONTRACTORS,CHIEF FINANCIAL OFFICER,JOBSEEKERS RECRUITMENT SERVICES LTD,453307,717.19,130 1297 14
BEIS,Met Office,2021-03-09,04 CONTRACTORS,MARKETS,JOBSEEKERS RECRUITMENT SERVICES LTD,453308,903.81,130 1297 14
BEIS,Met Office,2021-03-09,04 CONTRACTORS,OFFICE OF THE CEO,JOBSEEKERS RECRUITMENT SERVICES LTD,453309,931.84,130 1297 14
BEIS,Met Office,2021-03-09,04 CONTRACTORS,MARKETS,JOBSEEKERS RECRUITMENT SERVICES LTD,453310,1052.8,130 1297 14
BEIS,Met Office,2021-03-11,04 CONTRACTORS,CHIEF FINANCIAL OFFICER,JOBSEEKERS RECRUITMENT SERVICES LTD,453311,434.86,130 1297 14
BEIS,Met Office,2021-03-11,13 MISCELLANEOUS,CHIEF FINANCIAL OFFICER,JOBSEEKERS RECRUITMENT SERVICES LTD,453311,101,130 1297 14
BEIS,Met Office,2021-03-11,13 MISCELLANEOUS,CHIEF FINANCIAL OFFICER,JOBSEEKERS RECRUITMENT SERVICES LTD,453311,134,130 1297 14
BEIS,Met Office,2021-03-11,13 MISCELLANEOUS,CHIEF FINANCIAL OFFICER,JOBSEEKERS RECRUITMENT SERVICES LTD,453311,29.96,130 1297 14
BEIS,Met Office,2021-03-16,04 CONTRACTORS,MARKETS,JOBSEEKERS RECRUITMENT SERVICES LTD,453715,547.2,130 1297 14
BEIS,Met Office,2021-03-16,04 CONTRACTORS,CHIEF FINANCIAL OFFICER,JOBSEEKERS RECRUITMENT SERVICES LTD,453716,411.3,130 1297 14
BEIS,Met Office,2021-03-16,04 CONTRACTORS,CHIEF FINANCIAL OFFICER,JOBSEEKERS RECRUITMENT SERVICES LTD,453717,676.36,130 1297 14
BEIS,Met Office,2021-03-16,04 CONTRACTORS,MARKETS,JOBSEEKERS RECRUITMENT SERVICES LTD,453718,674.88,130 1297 14
BEIS,Met Office,2021-03-16,04 CONTRACTORS,OFFICE OF THE CEO,JOBSEEKERS RECRUITMENT SERVICES LTD,453719,674.88,130 1297 14
BEIS,Met Office,2021-03-30,04 CONTRACTORS,PEOPLE,JOBSEEKERS RECRUITMENT SERVICES LTD,454194,676.36,130 1297 14
BEIS,Met Office,2021-03-30,04 CONTRACTORS,OFFICE OF THE CEO,JOBSEEKERS RECRUITMENT SERVICES LTD,454195,699.88,130 1297 14
BEIS,Met Office,2021-03-30,04 CONTRACTORS,MARKETS,JOBSEEKERS RECRUITMENT SERVICES LTD,454196,161.8,130 1297 14
BEIS,Met Office,2021-03-30,04 CONTRACTORS,PEOPLE,JOBSEEKERS RECRUITMENT SERVICES LTD,454197,676.36,130 1297 14
BEIS,Met Office,2021-03-30,04 CONTRACTORS,CHIEF FINANCIAL OFFICER,JOBSEEKERS RECRUITMENT SERVICES LTD,454199,440.87,130 1297 14
BEIS,Met Office,2021-03-30,04 CONTRACTORS,MARKETS,JOBSEEKERS RECRUITMENT SERVICES LTD,454200,426.28,130 1297 14
BEIS,Met Office,2021-03-30,04 CONTRACTORS,CHIEF FINANCIAL OFFICER,JOBSEEKERS RECRUITMENT SERVICES LTD,454201,637.38,130 1297 14
BEIS,Met Office,2021-03-30,11 SERVICES,MARKETS,KENYA METEOROLOGICAL DEPARTMENT,446448,7181.47,-
BEIS,Met Office,2021-03-30,11 SERVICES,MARKETS,KENYA METEOROLOGICAL DEPARTMENT,446449,-581.47,-
BEIS,Met Office,2021-03-30,11 SERVICES,MARKETS,KENYA METEOROLOGICAL DEPARTMENT,446449,-6600,-
BEIS,Met Office,2021-03-23,11 SERVICES,PROGRAMMES,KORN FERRY HAY GROUP LTD,453706,34528,GB 539135439
BEIS,Met Office,2021-03-11,11 SERVICES,SERVICES,Landmark Information Group Ltd,453334,92795,634509735
BEIS,Met Office,2021-03-11,11 SERVICES,SERVICES,Landmark Information Group Ltd,453336,74042.86,634509735
BEIS,Met Office,2021-03-16,06 ACCOMMODATION,CHIEF FINANCIAL OFFICER,LHR BUSINESS SUPPORT CENTRE LTD,453714,3062.92,927365404
BEIS,Met Office,2021-03-04,11 SERVICES,CHIEF FINANCIAL OFFICER,LICENCE BUREAU LTD,452997,55,820219467
BEIS,Met Office,2021-03-31,08 SOFTWARE LICENCES,TECHNOLOGY AND CIO,LINBIT HA-SOLUTIONS GMBH,22315,3474.74,ATU64320988
BEIS,Met Office,2021-03-23,08 SOFTWARE LICENCES,TECHNOLOGY AND CIO,LNRS DATA SERVICES LTD,453941,17988.75,730859520
BEIS,Met Office,2021-03-30,11 SERVICES,PEOPLE,LNRS DATA SERVICES LTD,454203,10225.32,730859520
BEIS,Met Office,2021-03-25,PAYE AND VAT,OTHER,LTS INTERNATIONAL,451460,0,267763712
BEIS,Met Office,2021-03-25,PAYE AND VAT,OTHER,LTS INTERNATIONAL,451501,0,267763712
BEIS,Met Office,2021-03-25,PAYE AND VAT,OTHER,LTS INTERNATIONAL,451502,0,267763712
BEIS,Met Office,2021-03-25,11 SERVICES,MARKETS,LTS INTERNATIONAL,453972,15109.78,267763712
BEIS,Met Office,2021-03-30,11 SERVICES,MARKETS,LTS INTERNATIONAL,453973,12954.19,267763712
BEIS,Met Office,2021-03-30,11 SERVICES,MARKETS,LTS INTERNATIONAL,453973,3036.46,267763712
BEIS,Met Office,2021-03-09,07 EQUIPMENT,SERVICES,M C ENGINEERING SERVICES,453262,2324.16,813172066
BEIS,Met Office,2021-03-31,STOCK,SERVICES,M3 COURIERS LTD,454270,95,221386234
BEIS,Met Office,2021-03-24,12 INTERNATIONAL,MARKETS,MACITECHSY SOLUTIONS,454067,827.2,-
BEIS,Met Office,2021-03-24,12 INTERNATIONAL,MARKETS,MACITECHSY SOLUTIONS,454067,125,-
BEIS,Met Office,2021-03-23,11 SERVICES,PEOPLE,MARKET FOCUS CONSULTING LTD,453915,6770,759751578
BEIS,Met Office,2021-03-24,11 SERVICES,PROGRAMMES,MAURITIUS METEOROLOGICAL SOCIETY,452708,2000,-
BEIS,Met Office,2021-03-09,11 SERVICES,CHIEF FINANCIAL OFFICER,MAWASEM LTD,453251,5337.59,197694731
BEIS,Met Office,2021-03-17,11 SERVICES,MARKETS,MERCATOR OCEAN INTERNATIONAL,22336,12538.48,-
BEIS,Met Office,2021-03-09,11 SERVICES,SERVICES,MERKLE UK THREE LTD T/A MERKLE PERISCOPIX,453261,8315,843316243
BEIS,Met Office,2021-03-04,07 EQUIPMENT,CHIEF FINANCIAL OFFICER,METRIKUS LIMITED,435944,5526.12,321 8772 02
BEIS,Met Office,2021-03-04,08 SOFTWARE LICENCES,TECHNOLOGY AND CIO,MICROSOFT LTD,452981,87567,724594615
BEIS,Met Office,2021-03-09,11 SERVICES,PEOPLE,MIRADOR MANAGEMENT,453183,6000,331 7549 03
BEIS,Met Office,2021-03-09,11 SERVICES,PEOPLE,MIRADOR MANAGEMENT,453190,6000,331 7549 03
BEIS,Met Office,2021-03-04,11 SERVICES,CHIEF FINANCIAL OFFICER,MITIE SECURITY LTD,452970,10263.36,416706654
BEIS,Met Office,2021-03-04,11 SERVICES,CHIEF FINANCIAL OFFICER,MITIE SECURITY LTD,452971,20526.35,416706654
BEIS,Met Office,2021-03-04,11 SERVICES,CHIEF FINANCIAL OFFICER,MITIE SECURITY LTD,453064,627.8,416706654
BEIS,Met Office,2021-03-04,11 SERVICES,CHIEF FINANCIAL OFFICER,MITIE SECURITY LTD,453065,1234.56,416706654
BEIS,Met Office,2021-03-30,11 SERVICES,CHIEF FINANCIAL OFFICER,MITIE SECURITY LTD,454227,20526.35,416706654
BEIS,Met Office,2021-03-30,11 SERVICES,CHIEF FINANCIAL OFFICER,MITIE SECURITY LTD,454228,10263.36,416706654
BEIS,Met Office,2021-03-09,11 SERVICES,PEOPLE,MOMENTUM INCORPORATED,453306,1600,598958541
BEIS,Met Office,2021-03-16,11 SERVICES,PEOPLE,MOMENTUM INCORPORATED,453333,12800,598958541
BEIS,Met Office,2021-03-31,11 SERVICES,MARKETS,MOMENTUM INCORPORATED,454359,12800,598958541
BEIS,Met Office,2021-03-09,12 INTERNATIONAL,MARKETS,MYACORN LTD,453314,15000,-
BEIS,Met Office,2021-03-16,11 SERVICES,CHIEF FINANCIAL OFFICER,National Audit Office,453455,38000,417632457
BEIS,Met Office,2021-03-09,13 MISCELLANEOUS,SERVICES,National Oceanography Centre,452951,14000,GB 338 5487 64
BEIS,Met Office,2021-03-16,11 SERVICES,MARKETS,NAVIGATOR RESEARCH PLANNING COMMUNICATION LTD,453638,4550,628317730
BEIS,Met Office,2021-03-16,11 SERVICES,PEOPLE,NLA MEDIA ACCESS LTD,452544,11641.52,661865215
BEIS,Met Office,2021-03-23,FIXTURE & FITTINGS,CHIEF FINANCIAL OFFICER,NMCN PLC,453974,181367.95,GB648191516
BEIS,Met Office,2021-03-23,13 MISCELLANEOUS,CHIEF FINANCIAL OFFICER,NORSCOTT VENDING SERVICES LTD,453932,85,751402071
BEIS,Met Office,2021-03-23,06 ACCOMMODATION,CHIEF FINANCIAL OFFICER,NORTH WARWICKSHIRE BOROUGH COUNCIL,453926,1497,N/A
BEIS,Met Office,2021-03-17,11 SERVICES,SERVICES,NSSL GLOBAL LTD,10131,50.34,725151948
BEIS,Met Office,2021-03-17,11 SERVICES,SERVICES,NSSL GLOBAL LTD,10132,50.34,725151948
BEIS,Met Office,2021-03-24,11 SERVICES,MARKETS,OCEAN NEXT,22340,3026.53,FR52825016603
BEIS,Met Office,2021-03-09,06 ACCOMMODATION,CHIEF FINANCIAL OFFICER,OCMIS LTD,453157,537.69,406 7922 45
BEIS,Met Office,2021-03-16,06 ACCOMMODATION,CHIEF FINANCIAL OFFICER,OCMIS LTD,453515,-537.69,406 7922 45
BEIS,Met Office,2021-03-09,06 ACCOMMODATION,CHIEF FINANCIAL OFFICER,OCS Group UK Limited,453189,28284.86,GB238034379
BEIS,Met Office,2021-03-09,06 ACCOMMODATION,CHIEF FINANCIAL OFFICER,OCS Group UK Limited,453189,109308.18,GB238034379
BEIS,Met Office,2021-03-16,11 SERVICES,PEOPLE,OLD FROG LTD,453673,1880,642591532
BEIS,Met Office,2021-03-02,10 EQUIPMENT MAINTENANCE,TECHNOLOGY AND CIO,ORACLE CORPORATION UK LTD,452930,4088.01,391313073
BEIS,Met Office,2021-03-16,10 EQUIPMENT MAINTENANCE,TECHNOLOGY AND CIO,ORACLE CORPORATION UK LTD,453326,23778.71,391313073
BEIS,Met Office,2021-03-23,08 SOFTWARE LICENCES,TECHNOLOGY AND CIO,ORACLE CORPORATION UK LTD,453864,3556.95,391313073
BEIS,Met Office,2021-03-23,08 SOFTWARE LICENCES,TECHNOLOGY AND CIO,ORACLE CORPORATION UK LTD,453865,18141.08,391313073
BEIS,Met Office,2021-03-23,08 SOFTWARE LICENCES,TECHNOLOGY AND CIO,ORACLE CORPORATION UK LTD,453866,12732.42,391313073
BEIS,Met Office,2021-03-23,08 SOFTWARE LICENCES,TECHNOLOGY AND CIO,ORACLE CORPORATION UK LTD,453867,1724.95,391313073
BEIS,Met Office,2021-03-23,08 SOFTWARE LICENCES,TECHNOLOGY AND CIO,ORACLE CORPORATION UK LTD,453868,4697.59,391313073
BEIS,Met Office,2021-03-23,08 SOFTWARE LICENCES,TECHNOLOGY AND CIO,ORACLE CORPORATION UK LTD,453871,2723.48,391313073
BEIS,Met Office,2021-03-23,08 SOFTWARE LICENCES,TECHNOLOGY AND CIO,ORACLE CORPORATION UK LTD,453877,3506.45,391313073
BEIS,Met Office,2021-03-23,08 SOFTWARE LICENCES,TECHNOLOGY AND CIO,ORACLE CORPORATION UK LTD,453879,6016.17,391313073
BEIS,Met Office,2021-03-23,08 SOFTWARE LICENCES,TECHNOLOGY AND CIO,ORACLE CORPORATION UK LTD,453916,1214.02,391313073
BEIS,Met Office,2021-03-25,11 SERVICES,PROGRAMMES,OSBORNE CLARKE LLP,452950,10000,GB138187353
BEIS,Met Office,2021-03-11,11 SERVICES,OFFICE OF THE CEO,OSBORNE CLARKE LLP,453343,10375,GB138187353
BEIS,Met Office,2021-03-02,07 EQUIPMENT,PROGRAMMES,OTT HYDROMET,452919,512,737592693
BEIS,Met Office,2021-03-02,07 EQUIPMENT,PROGRAMMES,OTT HYDROMET,452919,190,737592693
BEIS,Met Office,2021-03-02,07 EQUIPMENT,PROGRAMMES,OTT HYDROMET,452919,2280,737592693
BEIS,Met Office,2021-03-02,04 CONTRACTORS,TECHNOLOGY AND CIO,OUTSOURCE UK LIMITED,452823,5831.15,576118722
BEIS,Met Office,2021-03-02,04 CONTRACTORS,TECHNOLOGY AND CIO,OUTSOURCE UK LIMITED,452824,9500,576118722
BEIS,Met Office,2021-03-02,04 CONTRACTORS,PROGRAMMES,OUTSOURCE UK LIMITED,452825,9435.8,576118722
BEIS,Met Office,2021-03-02,04 CONTRACTORS,PEOPLE,OUTSOURCE UK LIMITED,452826,6666.6,576118722
BEIS,Met Office,2021-03-02,04 CONTRACTORS,TECHNOLOGY AND CIO,OUTSOURCE UK LIMITED,452827,12950,576118722
BEIS,Met Office,2021-03-02,04 CONTRACTORS,TECHNOLOGY AND CIO,OUTSOURCE UK LIMITED,452828,8513,576118722
BEIS,Met Office,2021-03-02,04 CONTRACTORS,TECHNOLOGY AND CIO,OUTSOURCE UK LIMITED,452829,11092.4,576118722
BEIS,Met Office,2021-03-02,04 CONTRACTORS,TECHNOLOGY AND CIO,OUTSOURCE UK LIMITED,452873,8512.8,576118722
BEIS,Met Office,2021-03-02,04 CONTRACTORS,CHIEF FINANCIAL OFFICER,OUTSOURCE UK LIMITED,452874,4670.82,576118722
BEIS,Met Office,2021-03-02,04 CONTRACTORS,TECHNOLOGY AND CIO,OUTSOURCE UK LIMITED,452875,12903.2,576118722
BEIS,Met Office,2021-03-02,04 CONTRACTORS,TECHNOLOGY AND CIO,OUTSOURCE UK LIMITED,452876,10871.8,576118722
BEIS,Met Office,2021-03-02,04 CONTRACTORS,PROGRAMMES,OUTSOURCE UK LIMITED,452877,6956.6,576118722
BEIS,Met Office,2021-03-02,04 CONTRACTORS,TECHNOLOGY AND CIO,OUTSOURCE UK LIMITED,452878,8512.8,576118722
BEIS,Met Office,2021-03-02,04 CONTRACTORS,PROGRAMMES,OUTSOURCE UK LIMITED,452879,2473.1,576118722
BEIS,Met Office,2021-03-02,04 CONTRACTORS,TECHNOLOGY AND CIO,OUTSOURCE UK LIMITED,452880,4462.4,576118722
BEIS,Met Office,2021-03-02,04 CONTRACTORS,TECHNOLOGY AND CIO,OUTSOURCE UK LIMITED,452881,4043.58,576118722
BEIS,Met Office,2021-03-02,04 CONTRACTORS,PEOPLE,OUTSOURCE UK LIMITED,452882,5935.56,576118722
BEIS,Met Office,2021-03-02,04 CONTRACTORS,PROGRAMMES,OUTSOURCE UK LIMITED,452883,4725,576118722
BEIS,Met Office,2021-03-02,04 CONTRACTORS,TECHNOLOGY AND CIO,OUTSOURCE UK LIMITED,452884,8000,576118722
BEIS,Met Office,2021-03-02,04 CONTRACTORS,PROGRAMMES,OUTSOURCE UK LIMITED,452885,5850,576118722
BEIS,Met Office,2021-03-02,04 CONTRACTORS,TECHNOLOGY AND CIO,OUTSOURCE UK LIMITED,452886,12000,576118722
BEIS,Met Office,2021-03-02,04 CONTRACTORS,TECHNOLOGY AND CIO,OUTSOURCE UK LIMITED,452887,9841.05,576118722
BEIS,Met Office,2021-03-02,04 CONTRACTORS,TECHNOLOGY AND CIO,OUTSOURCE UK LIMITED,452888,8205.2,576118722
BEIS,Met Office,2021-03-02,04 CONTRACTORS,TECHNOLOGY AND CIO,OUTSOURCE UK LIMITED,452889,3978.5,576118722
BEIS,Met Office,2021-03-02,04 CONTRACTORS,TECHNOLOGY AND CIO,OUTSOURCE UK LIMITED,452890,1897.5,576118722
BEIS,Met Office,2021-03-02,04 CONTRACTORS,TECHNOLOGY AND CIO,OUTSOURCE UK LIMITED,452891,7590,576118722
BEIS,Met Office,2021-03-02,04 CONTRACTORS,TECHNOLOGY AND CIO,OUTSOURCE UK LIMITED,452892,9871.75,576118722
BEIS,Met Office,2021-03-02,04 CONTRACTORS,TECHNOLOGY AND CIO,OUTSOURCE UK LIMITED,452893,4676.88,576118722
BEIS,Met Office,2021-03-02,04 CONTRACTORS,CHIEF FINANCIAL OFFICER,OUTSOURCE UK LIMITED,452894,8512.8,576118722
BEIS,Met Office,2021-03-02,04 CONTRACTORS,TECHNOLOGY AND CIO,OUTSOURCE UK LIMITED,452895,14875,576118722
BEIS,Met Office,2021-03-04,04 CONTRACTORS,TECHNOLOGY AND CIO,OUTSOURCE UK LIMITED,453002,5298.93,576118722
BEIS,Met Office,2021-03-04,04 CONTRACTORS,PROGRAMMES,OUTSOURCE UK LIMITED,453003,7077,576118722
BEIS,Met Office,2021-03-09,04 CONTRACTORS,PROGRAMMES,OUTSOURCE UK LIMITED,453265,2359,576118722
BEIS,Met Office,2021-03-23,04 CONTRACTORS,TECHNOLOGY AND CIO,OUTSOURCE UK LIMITED,453989,12000,576118722
BEIS,Met Office,2021-03-23,04 CONTRACTORS,TECHNOLOGY AND CIO,OUTSOURCE UK LIMITED,453990,10000,576118722
BEIS,Met Office,2021-03-23,04 CONTRACTORS,PEOPLE,OUTSOURCE UK LIMITED,453991,2830.74,576118722
BEIS,Met Office,2021-03-23,04 CONTRACTORS,TECHNOLOGY AND CIO,OUTSOURCE UK LIMITED,453992,8512.8,576118722
BEIS,Met Office,2021-03-23,04 CONTRACTORS,TECHNOLOGY AND CIO,OUTSOURCE UK LIMITED,453993,8512.8,576118722
BEIS,Met Office,2021-03-23,04 CONTRACTORS,PROGRAMMES,OUTSOURCE UK LIMITED,453994,6608.77,576118722
BEIS,Met Office,2021-03-23,04 CONTRACTORS,TECHNOLOGY AND CIO,OUTSOURCE UK LIMITED,453995,11092.4,576118722
BEIS,Met Office,2021-03-23,04 CONTRACTORS,TECHNOLOGY AND CIO,OUTSOURCE UK LIMITED,453996,14000,576118722
BEIS,Met Office,2021-03-23,04 CONTRACTORS,PROGRAMMES,OUTSOURCE UK LIMITED,453997,4717.9,576118722
BEIS,Met Office,2021-03-23,04 CONTRACTORS,PROGRAMMES,OUTSOURCE UK LIMITED,453998,4717.9,576118722
BEIS,Met Office,2021-03-23,04 CONTRACTORS,PEOPLE,OUTSOURCE UK LIMITED,453999,6666.6,576118722
BEIS,Met Office,2021-03-23,04 CONTRACTORS,TECHNOLOGY AND CIO,OUTSOURCE UK LIMITED,454000,5163.06,576118722
BEIS,Met Office,2021-03-23,04 CONTRACTORS,TECHNOLOGY AND CIO,OUTSOURCE UK LIMITED,454001,12903.2,576118722
BEIS,Met Office,2021-03-23,04 CONTRACTORS,PEOPLE,OUTSOURCE UK LIMITED,454002,2967.78,576118722
BEIS,Met Office,2021-03-23,04 CONTRACTORS,TECHNOLOGY AND CIO,OUTSOURCE UK LIMITED,454003,10359,576118722
BEIS,Met Office,2021-03-25,04 CONTRACTORS,TECHNOLOGY AND CIO,OUTSOURCE UK LIMITED,454068,8205.2,576118722
BEIS,Met Office,2021-03-25,04 CONTRACTORS,TECHNOLOGY AND CIO,OUTSOURCE UK LIMITED,454069,8513,576118722
BEIS,Met Office,2021-03-30,04 CONTRACTORS,TECHNOLOGY AND CIO,OUTSOURCE UK LIMITED,454170,5651.23,576118722
BEIS,Met Office,2021-03-30,04 CONTRACTORS,TECHNOLOGY AND CIO,OUTSOURCE UK LIMITED,454171,7590,576118722
BEIS,Met Office,2021-03-30,04 CONTRACTORS,TECHNOLOGY AND CIO,OUTSOURCE UK LIMITED,454172,9512.83,576118722
BEIS,Met Office,2021-03-30,04 CONTRACTORS,PROGRAMMES,OUTSOURCE UK LIMITED,454273,6723.15,576118722
BEIS,Met Office,2021-03-30,04 CONTRACTORS,PROGRAMMES,OUTSOURCE UK LIMITED,454274,3825,576118722
BEIS,Met Office,2021-03-30,04 CONTRACTORS,PROGRAMMES,OUTSOURCE UK LIMITED,454275,9000,576118722
BEIS,Met Office,2021-03-30,04 CONTRACTORS,PROGRAMMES,OUTSOURCE UK LIMITED,454276,4837.5,576118722
BEIS,Met Office,2021-03-30,04 CONTRACTORS,CHIEF FINANCIAL OFFICER,OUTSOURCE UK LIMITED,454277,5426.91,576118722
BEIS,Met Office,2021-03-30,04 CONTRACTORS,TECHNOLOGY AND CIO,OUTSOURCE UK LIMITED,454278,6384.6,576118722
BEIS,Met Office,2021-03-18,11 SERVICES,MARKETS,PAUL WATKISS ASSOCIATES LTD,453843,10000,869587641
BEIS,Met Office,2021-03-09,11 SERVICES,SERVICES,PLANET OCEAN LTD,453057,300,834477212
BEIS,Met Office,2021-03-09,13 MISCELLANEOUS,CHIEF FINANCIAL OFFICER,POSTURITE (UK) LTD,451827,680.14,583565114
BEIS,Met Office,2021-03-16,13 MISCELLANEOUS,CHIEF FINANCIAL OFFICER,POSTURITE (UK) LTD,453655,503.41,583565114
BEIS,Met Office,2021-03-23,13 MISCELLANEOUS,CHIEF FINANCIAL OFFICER,POSTURITE (UK) LTD,453656,31.62,583565114
BEIS,Met Office,2021-03-16,13 MISCELLANEOUS,CHIEF FINANCIAL OFFICER,POSTURITE (UK) LTD,453659,50,583565114
BEIS,Met Office,2021-03-16,13 MISCELLANEOUS,CHIEF FINANCIAL OFFICER,POSTURITE (UK) LTD,453660,39.03,583565114
BEIS,Met Office,2021-03-23,13 MISCELLANEOUS,CHIEF FINANCIAL OFFICER,POSTURITE (UK) LTD,453737,291.99,583565114
BEIS,Met Office,2021-03-18,13 MISCELLANEOUS,CHIEF FINANCIAL OFFICER,POSTURITE (UK) LTD,453739,29.73,583565114
BEIS,Met Office,2021-03-23,13 MISCELLANEOUS,CHIEF FINANCIAL OFFICER,POSTURITE (UK) LTD,453829,680.14,583565114
BEIS,Met Office,2021-03-23,13 MISCELLANEOUS,CHIEF FINANCIAL OFFICER,POSTURITE (UK) LTD,453834,571.64,583565114
BEIS,Met Office,2021-03-23,13 MISCELLANEOUS,CHIEF FINANCIAL OFFICER,POSTURITE (UK) LTD,453835,14.41,583565114
BEIS,Met Office,2021-03-23,13 MISCELLANEOUS,CHIEF FINANCIAL OFFICER,POSTURITE (UK) LTD,453836,654.1,583565114
BEIS,Met Office,2021-03-23,13 MISCELLANEOUS,CHIEF FINANCIAL OFFICER,POSTURITE (UK) LTD,453837,-10.32,583565114
BEIS,Met Office,2021-03-23,13 MISCELLANEOUS,CHIEF FINANCIAL OFFICER,POSTURITE (UK) LTD,453838,13.99,583565114
BEIS,Met Office,2021-03-30,13 MISCELLANEOUS,CHIEF FINANCIAL OFFICER,POSTURITE (UK) LTD,453839,654.1,583565114
BEIS,Met Office,2021-03-23,13 MISCELLANEOUS,CHIEF FINANCIAL OFFICER,POSTURITE (UK) LTD,453840,-61.97,583565114
BEIS,Met Office,2021-03-23,13 MISCELLANEOUS,CHIEF FINANCIAL OFFICER,POSTURITE (UK) LTD,453841,83.66,583565114
BEIS,Met Office,2021-03-23,13 MISCELLANEOUS,CHIEF FINANCIAL OFFICER,POSTURITE (UK) LTD,453842,37.79,583565114
BEIS,Met Office,2021-03-23,13 MISCELLANEOUS,CHIEF FINANCIAL OFFICER,POSTURITE (UK) LTD,453844,767.56,583565114
BEIS,Met Office,2021-03-23,13 MISCELLANEOUS,CHIEF FINANCIAL OFFICER,POSTURITE (UK) LTD,453907,37.93,583565114
BEIS,Met Office,2021-03-23,13 MISCELLANEOUS,CHIEF FINANCIAL OFFICER,POSTURITE (UK) LTD,453909,50,583565114
BEIS,Met Office,2021-03-23,13 MISCELLANEOUS,CHIEF FINANCIAL OFFICER,POSTURITE (UK) LTD,453949,39.03,583565114
BEIS,Met Office,2021-03-23,06 ACCOMMODATION,CHIEF FINANCIAL OFFICER,POWER NI ENERGY LTD,453934,628.26,617518142
BEIS,Met Office,2021-03-16,08 SOFTWARE LICENCES,TECHNOLOGY AND CIO,PRESENTATION CARTOGRAPHY LTD,453443,750,-
BEIS,Met Office,2021-03-16,08 SOFTWARE LICENCES,TECHNOLOGY AND CIO,PRESENTATION CARTOGRAPHY LTD,453443,1083.35,-
BEIS,Met Office,2021-03-16,08 SOFTWARE LICENCES,TECHNOLOGY AND CIO,PRESENTATION CARTOGRAPHY LTD,453443,416.65,-
BEIS,Met Office,2021-03-09,08 SOFTWARE LICENCES,TECHNOLOGY AND CIO,PROSPERON NETWORKS LTD,453256,4220.4,889545649
BEIS,Met Office,2021-03-18,13 MISCELLANEOUS,OFFICE OF THE CEO,PUBLIC CHAIRS' FORUM,453451,1000,GB 239 6495 62
BEIS,Met Office,2021-03-18,06 ACCOMMODATION,CHIEF FINANCIAL OFFICER,PUBLIC SUB ACCOUNT - HMG 4806,453684,1750,888805068
BEIS,Met Office,2021-03-30,11 SERVICES,SERVICES,QA LTD,454253,1495,864455303
BEIS,Met Office,2021-03-04,04 CONTRACTORS,PROGRAMMES,QUALSERV CONSULTING LTD,453070,9000,719067718
BEIS,Met Office,2021-03-04,04 CONTRACTORS,TECHNOLOGY AND CIO,QUALSERV CONSULTING LTD,453071,8800,719067718
BEIS,Met Office,2021-03-04,04 CONTRACTORS,TECHNOLOGY AND CIO,QUALSERV CONSULTING LTD,453072,11238.5,719067718
BEIS,Met Office,2021-03-04,04 CONTRACTORS,PROGRAMMES,QUALSERV CONSULTING LTD,453073,6895.8,719067718
BEIS,Met Office,2021-03-04,04 CONTRACTORS,PEOPLE,QUALSERV CONSULTING LTD,453074,7280.35,719067718
BEIS,Met Office,2021-03-04,04 CONTRACTORS,MARKETS,QUALSERV CONSULTING LTD,453075,8964.4,719067718
BEIS,Met Office,2021-03-04,04 CONTRACTORS,SERVICES,QUALSERV CONSULTING LTD,453077,6288,719067718
BEIS,Met Office,2021-03-04,04 CONTRACTORS,SERVICES,QUALSERV CONSULTING LTD,453078,13000,719067718
BEIS,Met Office,2021-03-09,04 CONTRACTORS,TECHNOLOGY AND CIO,QUALSERV CONSULTING LTD,453158,11619.6,719067718
BEIS,Met Office,2021-03-09,04 CONTRACTORS,CHIEF FINANCIAL OFFICER,QUALSERV CONSULTING LTD,453159,5176.8,719067718
BEIS,Met Office,2021-03-09,04 CONTRACTORS,PROGRAMMES,QUALSERV CONSULTING LTD,453160,7000,719067718
BEIS,Met Office,2021-03-09,04 CONTRACTORS,TECHNOLOGY AND CIO,QUALSERV CONSULTING LTD,453167,6371.84,719067718
BEIS,Met Office,2021-03-09,04 CONTRACTORS,TECHNOLOGY AND CIO,QUALSERV CONSULTING LTD,453168,6963,719067718
BEIS,Met Office,2021-03-09,04 CONTRACTORS,TECHNOLOGY AND CIO,QUALSERV CONSULTING LTD,453169,10287,719067718
BEIS,Met Office,2021-03-09,04 CONTRACTORS,CHIEF FINANCIAL OFFICER,QUALSERV CONSULTING LTD,453171,2240,719067718
BEIS,Met Office,2021-03-09,04 CONTRACTORS,SERVICES,QUALSERV CONSULTING LTD,453172,2500,719067718
BEIS,Met Office,2021-03-09,04 CONTRACTORS,PROGRAMMES,QUALSERV CONSULTING LTD,453187,6275.08,719067718
BEIS,Met Office,2021-03-09,04 CONTRACTORS,PROGRAMMES,QUALSERV CONSULTING LTD,453188,3500,719067718
BEIS,Met Office,2021-03-09,04 CONTRACTORS,TECHNOLOGY AND CIO,QUALSERV CONSULTING LTD,453191,9527.51,719067718
BEIS,Met Office,2021-03-09,04 CONTRACTORS,PROGRAMMES,QUALSERV CONSULTING LTD,453263,8964.4,719067718
BEIS,Met Office,2021-03-09,08 SOFTWARE LICENCES,TECHNOLOGY AND CIO,QUEST SOFTWARE INTERNATIONAL LTD,453155,7043.9,581955404
BEIS,Met Office,2021-03-16,07 EQUIPMENT,SERVICES,R S Aqua Ltd,453713,85,370059760
BEIS,Met Office,2021-03-16,07 EQUIPMENT,SERVICES,R S Aqua Ltd,453713,2729,370059760
BEIS,Met Office,2021-03-16,10 EQUIPMENT MAINTENANCE,SERVICES,R S Aqua Ltd,453713,924,370059760
BEIS,Met Office,2021-03-09,03 STAFF COSTS T&S,CHIEF FINANCIAL OFFICER,RAINBOW CITY TAXIS,453202,21.7,724295039
BEIS,Met Office,2021-03-11,11 SERVICES,PROGRAMMES,RAND EUROPE,452996,1490,599625179
BEIS,Met Office,2021-03-24,11 SERVICES,MARKETS,Red Cross Red Crescent Climate Centre,22057,11407.41,N/A
BEIS,Met Office,2021-03-17,11 SERVICES,MARKETS,Red Cross Red Crescent Climate Centre,22310,20581.08,N/A
BEIS,Met Office,2021-03-04,04 CONTRACTORS,PROGRAMMES,REED,452993,8000,835515525
BEIS,Met Office,2021-03-04,04 CONTRACTORS,TECHNOLOGY AND CIO,REED,452993,9474,835515525
BEIS,Met Office,2021-03-04,04 CONTRACTORS,TECHNOLOGY AND CIO,REED,452993,9174,835515525
BEIS,Met Office,2021-03-17,11 SERVICES,PROGRAMMES,REGENTS OF THE UNIVERSITY OF COLORADO,10122,36637.92,-
BEIS,Met Office,2021-03-11,06 ACCOMMODATION,CHIEF FINANCIAL OFFICER,RIVER RIDGE,453338,82.34,176286083
BEIS,Met Office,2021-03-09,06 ACCOMMODATION,CHIEF FINANCIAL OFFICER,RIVEROAK MSE LIMITED,453233,0,326 084 707
BEIS,Met Office,2021-03-16,06 ACCOMMODATION,CHIEF FINANCIAL OFFICER,ROLLO POWER SOLUTIONS,442587,544,100516042
BEIS,Met Office,2021-03-16,06 ACCOMMODATION,CHIEF FINANCIAL OFFICER,ROLLO POWER SOLUTIONS,442588,544,100516042
BEIS,Met Office,2021-03-16,06 ACCOMMODATION,CHIEF FINANCIAL OFFICER,ROLLO POWER SOLUTIONS,442590,544,100516042
BEIS,Met Office,2021-03-16,06 ACCOMMODATION,CHIEF FINANCIAL OFFICER,ROLLO POWER SOLUTIONS,443068,544,100516042
BEIS,Met Office,2021-03-16,06 ACCOMMODATION,CHIEF FINANCIAL OFFICER,ROLLO POWER SOLUTIONS,443069,544,100516042
BEIS,Met Office,2021-03-16,06 ACCOMMODATION,CHIEF FINANCIAL OFFICER,ROLLO POWER SOLUTIONS,443622,544,100516042
BEIS,Met Office,2021-03-16,06 ACCOMMODATION,CHIEF FINANCIAL OFFICER,ROLLO POWER SOLUTIONS,443623,414,100516042
BEIS,Met Office,2021-03-16,06 ACCOMMODATION,CHIEF FINANCIAL OFFICER,ROLLO POWER SOLUTIONS,444035,414,100516042
BEIS,Met Office,2021-03-23,06 ACCOMMODATION,CHIEF FINANCIAL OFFICER,ROLLO POWER SOLUTIONS,453694,414,100516042
BEIS,Met Office,2021-03-23,06 ACCOMMODATION,CHIEF FINANCIAL OFFICER,ROLLO POWER SOLUTIONS,453694,130,100516042
BEIS,Met Office,2021-03-09,11 SERVICES,MARKETS,ROWE IT LTD,453162,48533.75,924964394
BEIS,Met Office,2021-03-09,11 SERVICES,MARKETS,ROWE IT LTD,453163,2975,924964394
BEIS,Met Office,2021-03-09,11 SERVICES,PROGRAMMES,ROWE IT LTD,453164,82687.5,924964394
BEIS,Met Office,2021-03-09,04 CONTRACTORS,PROGRAMMES,ROWE IT LTD,453165,15000,924964394
BEIS,Met Office,2021-03-09,11 SERVICES,MARKETS,ROWE IT LTD,453196,2062.5,924964394
BEIS,Met Office,2021-03-09,11 SERVICES,MARKETS,ROWE IT LTD,453196,5950,924964394
BEIS,Met Office,2021-03-09,11 SERVICES,MARKETS,ROWE IT LTD,453196,20372.5,924964394
BEIS,Met Office,2021-03-16,11 SERVICES,MARKETS,ROWE IT LTD,453198,6000,924964394
BEIS,Met Office,2021-03-09,11 SERVICES,MARKETS,ROWE IT LTD,453199,44970,924964394
BEIS,Met Office,2021-03-16,13 MISCELLANEOUS,SERVICES,Royal Meteorological Society,453632,5000,-
BEIS,Met Office,2021-03-16,13 MISCELLANEOUS,SERVICES,Royal Meteorological Society,453632,1410.77,-
BEIS,Met Office,2021-03-16,13 MISCELLANEOUS,SERVICES,Royal Meteorological Society,453632,2623.28,-
BEIS,Met Office,2021-03-23,12 INTERNATIONAL,MARKETS,Royal Meteorological Society,453922,1500,-
BEIS,Met Office,2021-03-30,11 SERVICES,SERVICES,Royal Meteorological Society,454151,6459.46,-
BEIS,Met Office,2021-03-31,06 ACCOMMODATION,CHIEF FINANCIAL OFFICER,ROYAL PARKS,454249,31.54,888845836
BEIS,Met Office,2021-03-25,06 ACCOMMODATION,CHIEF FINANCIAL OFFICER,S M THERMAL IMAGING LIMITED,454145,9750,202053964
BEIS,Met Office,2021-03-16,06 ACCOMMODATION,CHIEF FINANCIAL OFFICER,SAFESTORE LTD,453628,2815.28,722887607
BEIS,Met Office,2021-03-24,11 SERVICES,MARKETS,SAS OCEAN DATA LAB,22341,9944.31,FR51 792 395 92
BEIS,Met Office,2021-03-24,08 SOFTWARE LICENCES,TECHNOLOGY AND CIO,SCHEDMD LLC,10167,7171.91,-
BEIS,Met Office,2021-03-09,11 SERVICES,PROGRAMMES,SCIENCE & TECHNOLOGY FACILITIES COUNCIL,453178,37616,618367325
BEIS,Met Office,2021-03-16,06 ACCOMMODATION,CHIEF FINANCIAL OFFICER,Scottish Police Authority,453522,1500,158533589
BEIS,Met Office,2021-03-11,08 SOFTWARE LICENCES,TECHNOLOGY AND CIO,SECTIGO LTD,453441,10400,834875295
BEIS,Met Office,2021-03-02,06 ACCOMMODATION,CHIEF FINANCIAL OFFICER,SELECTA UK LTD,452953,130,581705924
BEIS,Met Office,2021-03-23,05 CONSULTANTS,PEOPLE,SEVENSTONESHR LIMITED,453924,237.5,-
BEIS,Met Office,2021-03-23,05 CONSULTANTS,PEOPLE,SEVENSTONESHR LIMITED,453925,3570,-
BEIS,Met Office,2021-03-09,06 ACCOMMODATION,CHIEF FINANCIAL OFFICER,Severn Trent Water Ltd,452844,625.72,486985565
BEIS,Met Office,2021-03-23,06 ACCOMMODATION,CHIEF FINANCIAL OFFICER,Severn Trent Water Ltd,453873,457.83,486985565
BEIS,Met Office,2021-03-16,06 ACCOMMODATION,CHIEF FINANCIAL OFFICER,SHARED ACCESS LTD,449694,6906.3,920672730
BEIS,Met Office,2021-03-16,06 ACCOMMODATION,CHIEF FINANCIAL OFFICER,SHARED ACCESS LTD,450094,-6906.3,920672730
BEIS,Met Office,2021-03-16,06 ACCOMMODATION,CHIEF FINANCIAL OFFICER,SHARED ACCESS LTD,453622,6906.3,920672730
BEIS,Met Office,2021-03-23,06 ACCOMMODATION,CHIEF FINANCIAL OFFICER,SHETLAND CLEANING SERVICES,453929,725.48,430028404
BEIS,Met Office,2021-03-25,08 SOFTWARE LICENCES,TECHNOLOGY AND CIO,SNOWFLAKE SOFTWARE LTD,453102,17988.75,785055409
BEIS,Met Office,2021-03-25,08 SOFTWARE LICENCES,TECHNOLOGY AND CIO,SNOWFLAKE SOFTWARE LTD,453940,-17988.75,785055409
BEIS,Met Office,2021-03-23,11 SERVICES,MARKETS,SOCIAL SENSING LTD,453704,2758,-
BEIS,Met Office,2021-03-04,08 SOFTWARE LICENCES,TECHNOLOGY AND CIO,SOFTWAREONE,452974,47437.16,GB 942 5301 43
BEIS,Met Office,2021-03-04,08 SOFTWARE LICENCES,SERVICES,SOFTWAREONE,452990,72642.24,GB 942 5301 43
BEIS,Met Office,2021-03-04,08 SOFTWARE LICENCES,TECHNOLOGY AND CIO,SOFTWAREONE,452990,8071.36,GB 942 5301 43
BEIS,Met Office,2021-03-04,08 SOFTWARE LICENCES,TECHNOLOGY AND CIO,SOFTWAREONE,452990,113003.52,GB 942 5301 43
BEIS,Met Office,2021-03-04,08 SOFTWARE LICENCES,TECHNOLOGY AND CIO,SOFTWAREONE,452990,608893.97,GB 942 5301 43
BEIS,Met Office,2021-03-04,08 SOFTWARE LICENCES,TECHNOLOGY AND CIO,SOFTWAREONE,452990,196469.28,GB 942 5301 43
BEIS,Met Office,2021-03-31,08 SOFTWARE LICENCES,TECHNOLOGY AND CIO,SOFTWAREONE,453651,8296.82,GB 942 5301 43
BEIS,Met Office,2021-03-31,08 SOFTWARE LICENCES,TECHNOLOGY AND CIO,SOFTWAREONE,454077,368.69,GB 942 5301 43
BEIS,Met Office,2021-03-31,08 SOFTWARE LICENCES,TECHNOLOGY AND CIO,SOFTWAREONE,454078,8389.9,GB 942 5301 43
BEIS,Met Office,2021-03-11,11 SERVICES,SERVICES,SOFTWIRE TECHNOLOGY LIMITED,453452,2520,752 1253 57
BEIS,Met Office,2021-03-23,11 SERVICES,MARKETS,SOFTWIRE TECHNOLOGY LIMITED,453919,52920,752 1253 57
BEIS,Met Office,2021-03-23,11 SERVICES,MARKETS,SOFTWIRE TECHNOLOGY LIMITED,453920,42600,752 1253 57
BEIS,Met Office,2021-03-24,11 SERVICES,MARKETS,Solomon Islands Meteorological Service,10133,2643.48,-
BEIS,Met Office,2021-03-11,04 CONTRACTORS,PROGRAMMES,SOLOS CONSULTANTS LTD,452263,17998,812035476
BEIS,Met Office,2021-03-11,04 CONTRACTORS,PROGRAMMES,SOLOS CONSULTANTS LTD,452334,6981.4,812035476
BEIS,Met Office,2021-03-11,04 CONTRACTORS,MARKETS,SOLOS CONSULTANTS LTD,452335,8540,812035476
BEIS,Met Office,2021-03-11,04 CONTRACTORS,PROGRAMMES,SOLOS CONSULTANTS LTD,452336,8988.4,812035476
BEIS,Met Office,2021-03-11,04 CONTRACTORS,PROGRAMMES,SOLOS CONSULTANTS LTD,452337,8756.8,812035476
BEIS,Met Office,2021-03-11,04 CONTRACTORS,TECHNOLOGY AND CIO,SOLOS CONSULTANTS LTD,452338,4400,812035476
BEIS,Met Office,2021-03-11,04 CONTRACTORS,PEOPLE,SOLOS CONSULTANTS LTD,452339,8988.4,812035476
BEIS,Met Office,2021-03-11,04 CONTRACTORS,PROGRAMMES,SOLOS CONSULTANTS LTD,452340,8988.4,812035476
BEIS,Met Office,2021-03-11,04 CONTRACTORS,TECHNOLOGY AND CIO,SOLOS CONSULTANTS LTD,452341,13520,812035476
BEIS,Met Office,2021-03-11,04 CONTRACTORS,CHIEF FINANCIAL OFFICER,SOLOS CONSULTANTS LTD,452342,11872,812035476
BEIS,Met Office,2021-03-11,04 CONTRACTORS,MARKETS,SOLOS CONSULTANTS LTD,452343,8925.2,812035476
BEIS,Met Office,2021-03-11,04 CONTRACTORS,CHIEF FINANCIAL OFFICER,SOLOS CONSULTANTS LTD,452344,11020.82,812035476
BEIS,Met Office,2021-03-11,04 CONTRACTORS,TECHNOLOGY AND CIO,SOLOS CONSULTANTS LTD,452345,10070,812035476
BEIS,Met Office,2021-03-11,04 CONTRACTORS,PROGRAMMES,SOLOS CONSULTANTS LTD,452346,13787.8,812035476
BEIS,Met Office,2021-03-11,04 CONTRACTORS,PROGRAMMES,SOLOS CONSULTANTS LTD,452347,13390,812035476
BEIS,Met Office,2021-03-11,04 CONTRACTORS,PROGRAMMES,SOLOS CONSULTANTS LTD,452348,15600,812035476
BEIS,Met Office,2021-03-11,04 CONTRACTORS,TECHNOLOGY AND CIO,SOLOS CONSULTANTS LTD,452349,10475,812035476
BEIS,Met Office,2021-03-11,04 CONTRACTORS,TECHNOLOGY AND CIO,SOLOS CONSULTANTS LTD,452350,6693.9,812035476
BEIS,Met Office,2021-03-11,04 CONTRACTORS,TECHNOLOGY AND CIO,SOLOS CONSULTANTS LTD,452351,12675,812035476
BEIS,Met Office,2021-03-11,04 CONTRACTORS,MARKETS,SOLOS CONSULTANTS LTD,452352,9299.8,812035476
BEIS,Met Office,2021-03-11,04 CONTRACTORS,MARKETS,SOLOS CONSULTANTS LTD,452353,7886.8,812035476
BEIS,Met Office,2021-03-11,04 CONTRACTORS,MARKETS,SOLOS CONSULTANTS LTD,452354,9614,812035476
BEIS,Met Office,2021-03-11,04 CONTRACTORS,TECHNOLOGY AND CIO,SOLOS CONSULTANTS LTD,452355,13754.91,812035476
BEIS,Met Office,2021-03-11,04 CONTRACTORS,TECHNOLOGY AND CIO,SOLOS CONSULTANTS LTD,452356,15675,812035476
BEIS,Met Office,2021-03-11,04 CONTRACTORS,PROGRAMMES,SOLOS CONSULTANTS LTD,452357,17680,812035476
BEIS,Met Office,2021-03-11,04 CONTRACTORS,TECHNOLOGY AND CIO,SOLOS CONSULTANTS LTD,452358,10400,812035476
BEIS,Met Office,2021-03-11,04 CONTRACTORS,CHIEF FINANCIAL OFFICER,SOLOS CONSULTANTS LTD,452359,6353.6,812035476
BEIS,Met Office,2021-03-11,04 CONTRACTORS,TECHNOLOGY AND CIO,SOLOS CONSULTANTS LTD,452360,8025.6,812035476
BEIS,Met Office,2021-03-11,04 CONTRACTORS,PEOPLE,SOLOS CONSULTANTS LTD,452361,7000,812035476
BEIS,Met Office,2021-03-11,04 CONTRACTORS,TECHNOLOGY AND CIO,SOLOS CONSULTANTS LTD,452362,8200,812035476
BEIS,Met Office,2021-03-11,04 CONTRACTORS,TECHNOLOGY AND CIO,SOLOS CONSULTANTS LTD,452363,13585,812035476
BEIS,Met Office,2021-03-11,04 CONTRACTORS,PROGRAMMES,SOLOS CONSULTANTS LTD,452364,10920,812035476
BEIS,Met Office,2021-03-11,04 CONTRACTORS,PROGRAMMES,SOLOS CONSULTANTS LTD,452365,130,812035476
BEIS,Met Office,2021-03-11,04 CONTRACTORS,PROGRAMMES,SOLOS CONSULTANTS LTD,452366,104,812035476
BEIS,Met Office,2021-03-16,04 CONTRACTORS,PROGRAMMES,SOLOS CONSULTANTS LTD,453580,10920,812035476
BEIS,Met Office,2021-03-16,04 CONTRACTORS,TECHNOLOGY AND CIO,SOLOS CONSULTANTS LTD,453581,13585,812035476
BEIS,Met Office,2021-03-16,04 CONTRACTORS,PROGRAMMES,SOLOS CONSULTANTS LTD,453582,17680,812035476
BEIS,Met Office,2021-03-16,04 CONTRACTORS,TECHNOLOGY AND CIO,SOLOS CONSULTANTS LTD,453583,13323.75,812035476
BEIS,Met Office,2021-03-16,04 CONTRACTORS,TECHNOLOGY AND CIO,SOLOS CONSULTANTS LTD,453584,10475,812035476
BEIS,Met Office,2021-03-16,04 CONTRACTORS,PROGRAMMES,SOLOS CONSULTANTS LTD,453585,12844,812035476
BEIS,Met Office,2021-03-16,04 CONTRACTORS,PROGRAMMES,SOLOS CONSULTANTS LTD,453586,15600,812035476
BEIS,Met Office,2021-03-16,04 CONTRACTORS,PROGRAMMES,SOLOS CONSULTANTS LTD,453587,13689.6,812035476
BEIS,Met Office,2021-03-16,04 CONTRACTORS,TECHNOLOGY AND CIO,SOLOS CONSULTANTS LTD,453588,5035,812035476
BEIS,Met Office,2021-03-16,04 CONTRACTORS,TECHNOLOGY AND CIO,SOLOS CONSULTANTS LTD,453589,8200,812035476
BEIS,Met Office,2021-03-16,04 CONTRACTORS,PEOPLE,SOLOS CONSULTANTS LTD,453590,7000,812035476
BEIS,Met Office,2021-03-16,04 CONTRACTORS,TECHNOLOGY AND CIO,SOLOS CONSULTANTS LTD,453591,8025.6,812035476
BEIS,Met Office,2021-03-16,04 CONTRACTORS,CHIEF FINANCIAL OFFICER,SOLOS CONSULTANTS LTD,453592,5877.08,812035476
BEIS,Met Office,2021-03-16,04 CONTRACTORS,TECHNOLOGY AND CIO,SOLOS CONSULTANTS LTD,453595,10400,812035476
BEIS,Met Office,2021-03-16,04 CONTRACTORS,TECHNOLOGY AND CIO,SOLOS CONSULTANTS LTD,453596,14107.6,812035476
BEIS,Met Office,2021-03-16,04 CONTRACTORS,MARKETS,SOLOS CONSULTANTS LTD,453597,9133.3,812035476
BEIS,Met Office,2021-03-16,04 CONTRACTORS,MARKETS,SOLOS CONSULTANTS LTD,453598,7886.8,812035476
BEIS,Met Office,2021-03-16,04 CONTRACTORS,MARKETS,SOLOS CONSULTANTS LTD,453599,9299.8,812035476
BEIS,Met Office,2021-03-16,04 CONTRACTORS,TECHNOLOGY AND CIO,SOLOS CONSULTANTS LTD,453600,13000,812035476
BEIS,Met Office,2021-03-16,04 CONTRACTORS,CHIEF FINANCIAL OFFICER,SOLOS CONSULTANTS LTD,453601,10982.89,812035476
BEIS,Met Office,2021-03-16,04 CONTRACTORS,MARKETS,SOLOS CONSULTANTS LTD,453602,8893.65,812035476
BEIS,Met Office,2021-03-16,04 CONTRACTORS,CHIEF FINANCIAL OFFICER,SOLOS CONSULTANTS LTD,453603,10684.8,812035476
BEIS,Met Office,2021-03-16,04 CONTRACTORS,TECHNOLOGY AND CIO,SOLOS CONSULTANTS LTD,453604,13520,812035476
BEIS,Met Office,2021-03-16,04 CONTRACTORS,PROGRAMMES,SOLOS CONSULTANTS LTD,453605,8988.4,812035476
BEIS,Met Office,2021-03-16,04 CONTRACTORS,PEOPLE,SOLOS CONSULTANTS LTD,453606,8988.4,812035476
BEIS,Met Office,2021-03-16,04 CONTRACTORS,TECHNOLOGY AND CIO,SOLOS CONSULTANTS LTD,453607,4400,812035476
BEIS,Met Office,2021-03-16,04 CONTRACTORS,PROGRAMMES,SOLOS CONSULTANTS LTD,453609,8756.8,812035476
BEIS,Met Office,2021-03-16,04 CONTRACTORS,PROGRAMMES,SOLOS CONSULTANTS LTD,453610,8925.2,812035476
BEIS,Met Office,2021-03-16,04 CONTRACTORS,MARKETS,SOLOS CONSULTANTS LTD,453611,8540,812035476
BEIS,Met Office,2021-03-16,04 CONTRACTORS,PROGRAMMES,SOLOS CONSULTANTS LTD,453612,6283.26,812035476
BEIS,Met Office,2021-03-16,04 CONTRACTORS,PROGRAMMES,SOLOS CONSULTANTS LTD,453613,17998,812035476
BEIS,Met Office,2021-03-16,04 CONTRACTORS,PROGRAMMES,SOLOS CONSULTANTS LTD,453614,15080,812035476
BEIS,Met Office,2021-03-18,11 SERVICES,PEOPLE,SOURCE COACHING CONSULTANCY,453846,1340,170422048
BEIS,Met Office,2021-03-23,06 ACCOMMODATION,CHIEF FINANCIAL OFFICER,SOUTH WEST WATER LTD,453938,36.64,236873674
BEIS,Met Office,2021-03-23,06 ACCOMMODATION,CHIEF FINANCIAL OFFICER,SOUTH WEST WATER LTD,453939,1114.18,236873674
BEIS,Met Office,2021-03-24,11 SERVICES,MARKETS,SOUTHSOUTHNORTH,453921,17894.77,4790219721
BEIS,Met Office,2021-03-11,11 SERVICES,MARKETS,SPOKE (INTERACTIVE) LTD,453342,700,840156451
BEIS,Met Office,2021-03-03,12 INTERNATIONAL,MARKETS,SPREP,10136,50011.79,-
BEIS,Met Office,2021-03-17,12 INTERNATIONAL,MARKETS,SPREP,10159,64547.22,-
BEIS,Met Office,2021-03-04,11 SERVICES,TECHNOLOGY AND CIO,SSE CONTRACTING LTD,453006,10137.45,570118464
BEIS,Met Office,2021-03-04,11 SERVICES,CHIEF FINANCIAL OFFICER,ST JOHN AMBULANCE,452983,342.5,564553916
BEIS,Met Office,2021-03-02,06 ACCOMMODATION,CHIEF FINANCIAL OFFICER,ST MODWEN VENTURES LTD,452937,862.5,975081008
BEIS,Met Office,2021-03-18,PLANT AND EQUIPMENT,CHIEF FINANCIAL OFFICER,Stewart Morris Partnership Ltd,451752,690,687720886
BEIS,Met Office,2021-03-11,11 SERVICES,CHIEF FINANCIAL OFFICER,SURE SOUTH ATLANTIC LTD,453330,4743,-
BEIS,Met Office,2021-03-11,11 SERVICES,CHIEF FINANCIAL OFFICER,SURE SOUTH ATLANTIC LTD,453331,591.15,-
BEIS,Met Office,2021-03-16,11 SERVICES,CHIEF FINANCIAL OFFICER,SURE SOUTH ATLANTIC LTD,453696,2580.97,NOVATREG
BEIS,Met Office,2021-03-11,11 SERVICES,CHIEF FINANCIAL OFFICER,SURE SOUTH ATLANTIC LTD (ST HELENA),453465,1526.48,30005
BEIS,Met Office,2021-03-03,11 SERVICES,CHIEF FINANCIAL OFFICER,SWISSCOM (SCHWEIZ) AG,452376,89.38,-
BEIS,Met Office,2021-03-10,11 SERVICES,CHIEF FINANCIAL OFFICER,SWISSCOM (SCHWEIZ) AG,453084,89.38,-
BEIS,Met Office,2021-03-31,11 SERVICES,CHIEF FINANCIAL OFFICER,SWISSCOM (SCHWEIZ) AG,453322,85.12,-
BEIS,Met Office,2021-03-10,11 SERVICES,MARKETS,TANZANIA METEOROLOGICAL AGENCY,453321,22000,-
BEIS,Met Office,2021-03-31,11 SERVICES,MARKETS,TANZANIA METEOROLOGICAL AGENCY,454153,17149.5,-
BEIS,Met Office,2021-03-03,13 MISCELLANEOUS,MARKETS,TECHNICAL UNIVERSITY OF DENMARK (DTU),21035,3848.72,DK30060946
BEIS,Met Office,2021-03-03,13 MISCELLANEOUS,MARKETS,TECHNICAL UNIVERSITY OF DENMARK (DTU),21040,-3782.94,DK30060946
BEIS,Met Office,2021-03-03,11 SERVICES,MARKETS,TECHNICAL UNIVERSITY OF DENMARK (DTU),21915,4098.62,DK30060946
BEIS,Met Office,2021-03-11,11 SERVICES,CHIEF FINANCIAL OFFICER,TELEFONICA O2 UK LIMITED,453477,7488.75,778603785
BEIS,Met Office,2021-03-16,11 SERVICES,CHIEF FINANCIAL OFFICER,TELEFONICA O2 UK LIMITED,453652,9458.55,778603785
BEIS,Met Office,2021-03-18,11 SERVICES,CHIEF FINANCIAL OFFICER,TELEFONICA O2 UK LIMITED,453671,50,778603785
BEIS,Met Office,2021-03-25,11 SERVICES,CHIEF FINANCIAL OFFICER,TELEFONICA O2 UK LIMITED,454143,50,778603785
BEIS,Met Office,2021-03-31,11 SERVICES,CHIEF FINANCIAL OFFICER,TELIA FINLAND OYJ,22393,152.59,FI14756079
BEIS,Met Office,2021-03-30,11 SERVICES,CHIEF FINANCIAL OFFICER,TELIA FINLAND OYJ,445034,178,FI14756079
BEIS,Met Office,2021-03-30,11 SERVICES,CHIEF FINANCIAL OFFICER,TELIA FINLAND OYJ,445063,-178,FI14756079
BEIS,Met Office,2021-03-09,06 ACCOMMODATION,CHIEF FINANCIAL OFFICER,TENNIE FACILITIES PROPERTY MANAGEMENT LTD,453203,165.72,982055803
BEIS,Met Office,2021-03-09,06 ACCOMMODATION,CHIEF FINANCIAL OFFICER,THE CLEANING CREW COMPANY,452984,540,343579772
BEIS,Met Office,2021-03-02,FIXTURE & FITTINGS,CHIEF FINANCIAL OFFICER,THORLUX LIGHTING,450222,330.63,GB 109 939 440
BEIS,Met Office,2021-03-23,11 SERVICES,MARKETS,THREE BLIND MICE LTD,454005,2050,GB 645 434 730
BEIS,Met Office,2021-03-16,08 SOFTWARE LICENCES,CHIEF FINANCIAL OFFICER,TIMEWATCH PLC,452441,13200,461555250
BEIS,Met Office,2021-03-16,08 SOFTWARE LICENCES,CHIEF FINANCIAL OFFICER,TIMEWATCH PLC,452441,151250,461555250
BEIS,Met Office,2021-03-16,08 SOFTWARE LICENCES,CHIEF FINANCIAL OFFICER,TIMEWATCH PLC,452441,2200,461555250
BEIS,Met Office,2021-03-16,08 SOFTWARE LICENCES,CHIEF FINANCIAL OFFICER,TIMEWATCH PLC,452441,9000,461555250
BEIS,Met Office,2021-03-02,06 ACCOMMODATION,MARKETS,Trinity House,452954,1508.88,243120414
BEIS,Met Office,2021-03-02,06 ACCOMMODATION,MARKETS,Trinity House,452954,25.14,243120414
BEIS,Met Office,2021-03-04,11 SERVICES,SERVICES,Trinity House,452995,1120,243120414
BEIS,Met Office,2021-03-04,13 MISCELLANEOUS,SERVICES,Trinity House,452995,1120,243120414
BEIS,Met Office,2021-03-04,12 INTERNATIONAL,MARKETS,TRIPOS CONSULTANTS,453004,3898.64,610652671
BEIS,Met Office,2021-03-30,12 INTERNATIONAL,MARKETS,TRIPOS CONSULTANTS,454163,2285.81,610652671
BEIS,Met Office,2021-03-30,12 INTERNATIONAL,MARKETS,TRIPOS CONSULTANTS,454163,4000,610652671
BEIS,Met Office,2021-03-10,11 SERVICES,PROGRAMMES,UCAR INCOMING PAYMENTS,10147,13121.89,-
BEIS,Met Office,2021-03-30,11 SERVICES,PROGRAMMES,UK ATOMIC ENERGY AUTHORITY,454216,17000,GB570101391
BEIS,Met Office,2021-03-30,11 SERVICES,PROGRAMMES,UK ATOMIC ENERGY AUTHORITY,454217,15000,GB570101391
BEIS,Met Office,2021-03-30,11 SERVICES,PROGRAMMES,UK ATOMIC ENERGY AUTHORITY,454218,41000,GB570101391
BEIS,Met Office,2021-03-30,11 SERVICES,PROGRAMMES,UK ATOMIC ENERGY AUTHORITY,454218,10000,GB570101391
BEIS,Met Office,2021-03-30,11 SERVICES,PROGRAMMES,UK ATOMIC ENERGY AUTHORITY,454219,187399.1,GB570101391
BEIS,Met Office,2021-03-09,11 SERVICES,PROGRAMMES,UK CENTRE FOR ECOLOGY & HYDROLOGY (UKCEH),450083,54130,336940192
BEIS,Met Office,2021-03-31,11 SERVICES,PROGRAMMES,UK CENTRE FOR ECOLOGY & HYDROLOGY (UKCEH),453267,79810.44,336940192
BEIS,Met Office,2021-03-16,11 SERVICES,PROGRAMMES,UK CENTRE FOR ECOLOGY & HYDROLOGY (UKCEH),453616,163755,336940192
BEIS,Met Office,2021-03-18,11 SERVICES,PROGRAMMES,UK CENTRE FOR ECOLOGY & HYDROLOGY (UKCEH),453705,109691.28,336940192
BEIS,Met Office,2021-03-23,11 SERVICES,MARKETS,UK CENTRE FOR ECOLOGY & HYDROLOGY (UKCEH),453876,40000,336940192
BEIS,Met Office,2021-03-30,06 ACCOMMODATION,CHIEF FINANCIAL OFFICER,UK CENTRE FOR ECOLOGY & HYDROLOGY (UKCEH),454168,2911.47,336940192
BEIS,Met Office,2021-03-31,11 SERVICES,MARKETS,UK CENTRE FOR ECOLOGY & HYDROLOGY (UKCEH),454302,15000,336940192
BEIS,Met Office,2021-03-04,11 SERVICES,TECHNOLOGY AND CIO,UKCLOUD LTD,452998,1507.2,172647982
BEIS,Met Office,2021-03-18,13 MISCELLANEOUS,SCIENCE,UKRI,452531,1000,GB287461957
BEIS,Met Office,2021-03-18,13 MISCELLANEOUS,SCIENCE,UKRI,452989,-1000,GB287461957
BEIS,Met Office,2021-03-18,11 SERVICES,MARKETS,UKRI,453618,40000,GB287461957
BEIS,Met Office,2021-03-23,11 SERVICES,MARKETS,UKRI,453833,90398.52,GB287461957
BEIS,Met Office,2021-03-18,11 SERVICES,MARKETS,UKRI,453874,-40000,GB287461957
BEIS,Met Office,2021-03-02,11 SERVICES,MARKETS,ULTRA ELECTRONICS LTD NUCLEAR CONTROL SYSTEMS,452815,7905.11,123340754
BEIS,Met Office,2021-03-02,11 SERVICES,MARKETS,ULTRA ELECTRONICS LTD NUCLEAR CONTROL SYSTEMS,452830,232304.62,123340754
BEIS,Met Office,2021-03-31,11 SERVICES,SCIENCE,UNIVERSIDAD TECNOLOGICA NACIONAL,22339,4054.99,-
BEIS,Met Office,2021-03-31,11 SERVICES,SCIENCE,UNIVERSIDAD TECNOLOGICA NACIONAL,22339,290.24,-
BEIS,Met Office,2021-03-09,13 MISCELLANEOUS,MARKETS,University College London,451083,1000,524371168
BEIS,Met Office,2021-03-23,11 SERVICES,PROGRAMMES,University College London,453966,27702.56,524371168
BEIS,Met Office,2021-03-30,06 ACCOMMODATION,CHIEF FINANCIAL OFFICER,University Of Birmingham,448813,654.72,729856187
BEIS,Met Office,2021-03-30,06 ACCOMMODATION,CHIEF FINANCIAL OFFICER,University Of Birmingham,448814,-654.72,729856187
BEIS,Met Office,2021-03-30,11 SERVICES,PROGRAMMES,University Of Birmingham,452507,78055.58,729856187
BEIS,Met Office,2021-03-30,11 SERVICES,PROGRAMMES,University Of Birmingham,453950,80515.8,729856187
BEIS,Met Office,2021-03-30,11 SERVICES,PROGRAMMES,University Of Birmingham,453951,-78055.58,729856187
BEIS,Met Office,2021-03-11,11 SERVICES,PROGRAMMES,UNIVERSITY OF CAMBRIDGE,453323,52098.27,214222124
BEIS,Met Office,2021-03-11,11 SERVICES,PROGRAMMES,UNIVERSITY OF CAMBRIDGE,453325,9655.11,214222124
BEIS,Met Office,2021-03-09,11 SERVICES,SERVICES,UNIVERSITY OF CHESTER,452927,702,189131784
BEIS,Met Office,2021-03-16,11 SERVICES,PROGRAMMES,UNIVERSITY OF EAST ANGLIA,453324,112076.47,595183505
BEIS,Met Office,2021-03-30,11 SERVICES,PROGRAMMES,UNIVERSITY OF EAST ANGLIA,453946,130755.89,595183505
BEIS,Met Office,2021-03-30,11 SERVICES,PROGRAMMES,UNIVERSITY OF EAST ANGLIA,454154,46698.53,595183505
BEIS,Met Office,2021-03-30,11 SERVICES,PROGRAMMES,UNIVERSITY OF EAST ANGLIA,454155,-130755.89,595183505
BEIS,Met Office,2021-03-30,11 SERVICES,SCIENCE,UNIVERSITY OF EXETER,451747,18500,142047795
BEIS,Met Office,2021-03-04,11 SERVICES,MARKETS,UNIVERSITY OF EXETER,452701,30000,142047795
BEIS,Met Office,2021-03-11,11 SERVICES,SCIENCE,UNIVERSITY OF EXETER,453294,25000,142047795
BEIS,Met Office,2021-03-11,11 SERVICES,SCIENCE,UNIVERSITY OF EXETER,453295,12500,142047795
BEIS,Met Office,2021-03-11,11 SERVICES,SCIENCE,UNIVERSITY OF EXETER,453296,25000,142047795
BEIS,Met Office,2021-03-11,11 SERVICES,SCIENCE,UNIVERSITY OF EXETER,453297,12500,142047795
BEIS,Met Office,2021-03-11,11 SERVICES,SCIENCE,UNIVERSITY OF EXETER,453298,12500,142047795
BEIS,Met Office,2021-03-30,11 SERVICES,PROGRAMMES,UNIVERSITY OF EXETER,453345,163300.8,142047795
BEIS,Met Office,2021-03-16,11 SERVICES,MARKETS,UNIVERSITY OF EXETER,453574,3770.83,142047795
BEIS,Met Office,2021-03-30,11 SERVICES,SCIENCE,UNIVERSITY OF EXETER,453875,-18500,142047795
BEIS,Met Office,2021-03-02,03 STAFF COSTS T&S,SCIENCE,University Of Leeds,452928,2829.3,613451470
BEIS,Met Office,2021-03-18,11 SERVICES,PROGRAMMES,University Of Leeds,453266,4408,613451470
BEIS,Met Office,2021-03-09,13 MISCELLANEOUS,SCIENCE,University Of Leeds,453305,1000,613451470
BEIS,Met Office,2021-03-16,11 SERVICES,MARKETS,University Of Leeds,453346,61326.8,613451470
BEIS,Met Office,2021-03-16,11 SERVICES,MARKETS,University Of Leeds,453346,61326.8,613451470
BEIS,Met Office,2021-03-16,11 SERVICES,MARKETS,University Of Leeds,453346,61326.8,613451470
BEIS,Met Office,2021-03-31,11 SERVICES,PROGRAMMES,University Of Leeds,453347,91427.2,613451470
BEIS,Met Office,2021-03-16,11 SERVICES,PROGRAMMES,University Of Leeds,453434,222730.38,613451470
BEIS,Met Office,2021-03-31,11 SERVICES,PROGRAMMES,University Of Leeds,453456,5619.33,613451470
BEIS,Met Office,2021-03-31,11 SERVICES,PROGRAMMES,University Of Leeds,453456,125943,613451470
BEIS,Met Office,2021-03-31,11 SERVICES,PROGRAMMES,University Of Leeds,453674,4000,613451470
BEIS,Met Office,2021-03-23,11 SERVICES,PROGRAMMES,University Of Leeds,453733,45713.6,613451470
BEIS,Met Office,2021-03-31,11 SERVICES,PROGRAMMES,University Of Leeds,453742,-91427.2,613451470
BEIS,Met Office,2021-03-31,13 MISCELLANEOUS,SCIENCE,University Of Leeds,454361,54785.16,613451470
BEIS,Met Office,2021-03-09,11 SERVICES,SERVICES,UNIVERSITY OF LEICESTER,452727,4633.2,916583894
BEIS,Met Office,2021-03-02,11 SERVICES,PROGRAMMES,UNIVERSITY OF OXFORD,452811,16608.36,125506730
BEIS,Met Office,2021-03-31,11 SERVICES,PROGRAMMES,UNIVERSITY OF OXFORD,454141,16608.36,125506730
BEIS,Met Office,2021-03-16,11 SERVICES,PROGRAMMES,University Of Reading,447123,68029.75,200012659
BEIS,Met Office,2021-03-16,11 SERVICES,PROGRAMMES,University Of Reading,452526,66799.74,200012659
BEIS,Met Office,2021-03-02,11 SERVICES,PROGRAMMES,University Of Reading,452916,32152.07,200012659
BEIS,Met Office,2021-03-09,13 MISCELLANEOUS,SCIENCE,University Of Reading,453197,1250,200012659
BEIS,Met Office,2021-03-11,13 MISCELLANEOUS,SCIENCE,University Of Reading,453435,562.5,200012659
BEIS,Met Office,2021-03-11,13 MISCELLANEOUS,SCIENCE,University Of Reading,453436,562.5,200012659
BEIS,Met Office,2021-03-11,13 MISCELLANEOUS,SCIENCE,University Of Reading,453437,562.5,200012659
BEIS,Met Office,2021-03-11,13 MISCELLANEOUS,SCIENCE,University Of Reading,453453,562.5,200012659
BEIS,Met Office,2021-03-30,11 SERVICES,PROGRAMMES,University Of Reading,453575,49984,200012659
BEIS,Met Office,2021-03-30,11 SERVICES,PROGRAMMES,University Of Reading,453576,59500.37,200012659
BEIS,Met Office,2021-03-16,11 SERVICES,PROGRAMMES,University Of Reading,453678,74652,200012659
BEIS,Met Office,2021-03-23,13 MISCELLANEOUS,SCIENCE,University Of Reading,453854,333.33,200012659
BEIS,Met Office,2021-03-23,11 SERVICES,SCIENCE,University Of Reading,453917,100000,200012659
BEIS,Met Office,2021-03-31,PLANT AND EQUIPMENT,SERVICES,VAISALA LTD,22331,21470.37,336100011
BEIS,Met Office,2021-03-16,11 SERVICES,SERVICES,VAISALA LTD,453702,648.5,336100011
BEIS,Met Office,2021-03-16,11 SERVICES,SERVICES,VAISALA LTD,453702,12084,336100011
BEIS,Met Office,2021-03-23,11 SERVICES,OFFICE OF THE CEO,VALERIE WARK ASSOCIATES LIMITED,447122,500,727398007
BEIS,Met Office,2021-03-09,06 ACCOMMODATION,CHIEF FINANCIAL OFFICER,VICKERY HOLMAN,453249,4015.62,943875678
BEIS,Met Office,2021-03-30,11 SERVICES,CHIEF FINANCIAL OFFICER,Vodafone Limited,452941,4214.46,569953277
BEIS,Met Office,2021-03-04,11 SERVICES,SERVICES,VOLKSWAGEN GROUP LEASING,452896,-57.96,BG745963883
BEIS,Met Office,2021-03-04,11 SERVICES,SERVICES,VOLKSWAGEN GROUP LEASING,452897,-718.2,BG745963883
BEIS,Met Office,2021-03-04,11 SERVICES,SERVICES,VOLKSWAGEN GROUP LEASING,453100,4142.14,BG745963883
BEIS,Met Office,2021-03-02,STOCK,SERVICES,VWR INTERNATIONAL LTD,452787,0,823853225
BEIS,Met Office,2021-03-02,TRADE CREDITORS,SERVICES,VWR INTERNATIONAL LTD,452787,531.5,823853225
BEIS,Met Office,2021-03-02,11 SERVICES,SERVICES,VWR INTERNATIONAL LTD,452787,22.8,823853225
BEIS,Met Office,2021-03-04,04 CONTRACTORS,PROGRAMMES,WA CONSULTANTS LTD,452986,6564.3,876328977
BEIS,Met Office,2021-03-04,04 CONTRACTORS,PROGRAMMES,WA CONSULTANTS LTD,452986,1737.07,876328977
BEIS,Met Office,2021-03-04,04 CONTRACTORS,CHIEF FINANCIAL OFFICER,WA CONSULTANTS LTD,452987,10520,876328977
BEIS,Met Office,2021-03-04,04 CONTRACTORS,PROGRAMMES,WA CONSULTANTS LTD,452988,8772.2,876328977
BEIS,Met Office,2021-03-09,04 CONTRACTORS,TECHNOLOGY AND CIO,WA CONSULTANTS LTD,453085,8800,876328977
BEIS,Met Office,2021-03-09,04 CONTRACTORS,TECHNOLOGY AND CIO,WA CONSULTANTS LTD,453086,11636.6,876328977
BEIS,Met Office,2021-03-09,04 CONTRACTORS,TECHNOLOGY AND CIO,WA CONSULTANTS LTD,453087,8024.04,876328977
BEIS,Met Office,2021-03-09,04 CONTRACTORS,PROGRAMMES,WA CONSULTANTS LTD,453088,906,876328977
BEIS,Met Office,2021-03-09,04 CONTRACTORS,TECHNOLOGY AND CIO,WA CONSULTANTS LTD,453089,12964.6,876328977
BEIS,Met Office,2021-03-09,04 CONTRACTORS,TECHNOLOGY AND CIO,WA CONSULTANTS LTD,453090,10682.5,876328977
BEIS,Met Office,2021-03-04,04 CONTRACTORS,TECHNOLOGY AND CIO,WA CONSULTANTS LTD,453091,9973,876328977
BEIS,Met Office,2021-03-04,04 CONTRACTORS,PROGRAMMES,WA CONSULTANTS LTD,453092,10229.03,876328977
BEIS,Met Office,2021-03-04,04 CONTRACTORS,CHIEF FINANCIAL OFFICER,WA CONSULTANTS LTD,453093,6962,876328977
BEIS,Met Office,2021-03-04,04 CONTRACTORS,TECHNOLOGY AND CIO,WA CONSULTANTS LTD,453094,11320.6,876328977
BEIS,Met Office,2021-03-04,04 CONTRACTORS,TECHNOLOGY AND CIO,WA CONSULTANTS LTD,453095,13271.12,876328977
BEIS,Met Office,2021-03-04,04 CONTRACTORS,TECHNOLOGY AND CIO,WA CONSULTANTS LTD,453096,11742,876328977
BEIS,Met Office,2021-03-04,04 CONTRACTORS,TECHNOLOGY AND CIO,WA CONSULTANTS LTD,453097,13613.34,876328977
BEIS,Met Office,2021-03-04,04 CONTRACTORS,CHIEF FINANCIAL OFFICER,WA CONSULTANTS LTD,453098,1980,876328977
BEIS,Met Office,2021-03-04,04 CONTRACTORS,CHIEF FINANCIAL OFFICER,WA CONSULTANTS LTD,453099,11219.55,876328977
BEIS,Met Office,2021-03-04,04 CONTRACTORS,PROGRAMMES,WA CONSULTANTS LTD,453104,2178,876328977
BEIS,Met Office,2021-03-04,04 CONTRACTORS,SERVICES,WA CONSULTANTS LTD,453105,10450,876328977
BEIS,Met Office,2021-03-04,04 CONTRACTORS,CHIEF FINANCIAL OFFICER,WA CONSULTANTS LTD,453107,8021.6,876328977
BEIS,Met Office,2021-03-09,04 CONTRACTORS,TECHNOLOGY AND CIO,WA CONSULTANTS LTD,453153,10000,876328977
BEIS,Met Office,2021-03-09,04 CONTRACTORS,TECHNOLOGY AND CIO,WA CONSULTANTS LTD,453154,8100,876328977
BEIS,Met Office,2021-03-09,04 CONTRACTORS,TECHNOLOGY AND CIO,WA CONSULTANTS LTD,453258,10870.4,876328977
BEIS,Met Office,2021-03-09,04 CONTRACTORS,MARKETS,WA CONSULTANTS LTD,453273,3240,876328977
BEIS,Met Office,2021-03-09,04 CONTRACTORS,TECHNOLOGY AND CIO,WA CONSULTANTS LTD,453304,5435.2,876328977
BEIS,Met Office,2021-03-30,04 CONTRACTORS,CHIEF FINANCIAL OFFICER,WA CONSULTANTS LTD,454255,360,876328977
BEIS,Met Office,2021-03-30,04 CONTRACTORS,TECHNOLOGY AND CIO,WA CONSULTANTS LTD,454256,10000,876328977
BEIS,Met Office,2021-03-30,04 CONTRACTORS,CHIEF FINANCIAL OFFICER,WA CONSULTANTS LTD,454259,10257,876328977
BEIS,Met Office,2021-03-30,04 CONTRACTORS,PROGRAMMES,WA CONSULTANTS LTD,454260,8722.6,876328977
BEIS,Met Office,2021-03-30,04 CONTRACTORS,TECHNOLOGY AND CIO,WA CONSULTANTS LTD,454261,9225.02,876328977
BEIS,Met Office,2021-03-30,04 CONTRACTORS,TECHNOLOGY AND CIO,WA CONSULTANTS LTD,454262,10364.38,876328977
BEIS,Met Office,2021-03-30,04 CONTRACTORS,CHIEF FINANCIAL OFFICER,WA CONSULTANTS LTD,454263,8672,876328977
BEIS,Met Office,2021-03-30,04 CONTRACTORS,PROGRAMMES,WA CONSULTANTS LTD,454264,2178,876328977
BEIS,Met Office,2021-03-30,04 CONTRACTORS,PROGRAMMES,WA CONSULTANTS LTD,454271,10229.03,876328977
BEIS,Met Office,2021-03-30,04 CONTRACTORS,CHIEF FINANCIAL OFFICER,WA CONSULTANTS LTD,454272,6962,876328977
BEIS,Met Office,2021-03-09,11 SERVICES,CHIEF FINANCIAL OFFICER,WEBEX COMMUNICATIONS UK LTD,452982,215.68,815974302
BEIS,Met Office,2021-03-16,11 SERVICES,CHIEF FINANCIAL OFFICER,WEBEX COMMUNICATIONS UK LTD,453629,420.02,815974302
BEIS,Met Office,2021-03-30,11 SERVICES,CHIEF FINANCIAL OFFICER,WEBEX COMMUNICATIONS UK LTD,454269,209.92,815974302
BEIS,Met Office,2021-03-23,06 ACCOMMODATION,CHIEF FINANCIAL OFFICER,WILTSHIRE COUNCIL,453930,4890.2,-
BEIS,Met Office,2021-03-09,11 SERVICES,TECHNOLOGY AND CIO,WIREFAST LTD,453058,1799.47,749536001
BEIS,Met Office,2021-03-09,11 SERVICES,TECHNOLOGY AND CIO,WIREFAST LTD,453060,4176.69,749536001
BEIS,Met Office,2021-03-02,06 ACCOMMODATION,CHIEF FINANCIAL OFFICER,WIRELESS NETWORK DEVELOPMENTS (UK) LTD,452948,149.94,GB277474559
BEIS,Met Office,2021-03-23,06 ACCOMMODATION,CHIEF FINANCIAL OFFICER,WOKINGHAM BOROUGH COUNCIL,451959,-903.85,-
BEIS,Met Office,2021-03-23,06 ACCOMMODATION,CHIEF FINANCIAL OFFICER,WOKINGHAM BOROUGH COUNCIL,452596,-1372.25,-
BEIS,Met Office,2021-03-30,06 ACCOMMODATION,CHIEF FINANCIAL OFFICER,WOKINGHAM BOROUGH COUNCIL,453931,13972,-
BEIS,Met Office,2021-03-23,06 ACCOMMODATION,CHIEF FINANCIAL OFFICER,WOKINGHAM BOROUGH COUNCIL,453935,3601.52,-
BEIS,Met Office,2021-03-23,06 ACCOMMODATION,CHIEF FINANCIAL OFFICER,WOKINGHAM BOROUGH COUNCIL,453936,1106.49,-
BEIS,Met Office,2021-03-18,12 INTERNATIONAL,MARKETS,World Meteorological Organization,453808,90000,-
BEIS,Met Office,2021-03-09,11 SERVICES,SERVICES,WORLDPAY (UK) LTD,453175,49.51,991280207
BEIS,Met Office,2021-03-09,11 SERVICES,SERVICES,WORLDPAY (UK) LTD,453177,63.59,991280207
BEIS,Met Office,2021-03-23,11 SERVICES,SERVICES,WORLDPAY LTD,453185,22.25,991280207
BEIS,Met Office,2021-03-23,06 ACCOMMODATION,CHIEF FINANCIAL OFFICER,WYCHAVON DISTRICT COUNCIL,453927,1041.41,-
BEIS,Met Office,2021-03-09,10 EQUIPMENT MAINTENANCE,SERVICES,YOUNG CALIBRATION LIMITED,453248,1350,673900720
BEIS,Met Office,2021-03-09,11 SERVICES,SERVICES,YOUNG CALIBRATION LIMITED,453248,15,673900720
BEIS,Met Office,2021-03-04,03 STAFF COSTS T&S,SERVICES,CARTUS FINANCING LTD,453076,240.49,768489458
BEIS,Met Office,2021-03-02,03 STAFF COSTS T&S,SERVICES,CARTUS LTD,452781,451.4,768489458
BEIS,Met Office,2021-03-04,03 STAFF COSTS T&S,SERVICES,CARTUS LTD,453056,1629.49,768489458
BEIS,Met Office,2021-03-18,03 STAFF COSTS T&S,SERVICES,CARTUS LTD,453689,705.24,768489458
BEIS,Met Office,2021-03-18,03 STAFF COSTS T&S,SERVICES,CARTUS LTD,453690,1150.73,768489458
BEIS,Met Office,2021-03-23,03 STAFF COSTS T&S,SERVICES,CARTUS LTD,453691,4858.8,768489458
BEIS,Met Office,2021-03-18,03 STAFF COSTS T&S,SERVICES,CARTUS LTD,453692,1584.6,768489458
BEIS,Met Office,2021-03-18,03 STAFF COSTS T&S,SERVICES,CARTUS LTD,453693,155,768489458
BEIS,Met Office,2021-03-23,03 STAFF COSTS T&S,SERVICES,CARTUS LTD,453695,274,768489458
BEIS,Met Office,2021-03-23,03 STAFF COSTS T&S,SERVICES,CARTUS LTD,453861,250,768489458
BEIS,Met Office,2021-03-18,11 SERVICES,PEOPLE,MYCSP LTD,452616,578.34,128754393
BEIS,Met Office,2021-03-09,11 SERVICES,PROGRAMMES,MYCSP LTD,453320,132.06,128754393
BEIS,Met Office,2021-03-24,TRADE CREDITORS,OTHER,NATWEST COMMERCIAL CARDS DIVISION,454008,162592.54,N/A
BEIS,Met Office,2021-03-24,07 EQUIPMENT,CHIEF FINANCIAL OFFICER,NATWEST COMMERCIAL CARDS DIVISION,454009,3111.23,N/A
BEIS,Met Office,2021-03-16,06 ACCOMMODATION,CHIEF FINANCIAL OFFICER,REDACTED PERSONAL DATA,453608,80,166458184
BEIS,Met Office,2021-03-16,06 ACCOMMODATION,CHIEF FINANCIAL OFFICER,REDACTED PERSONAL DATA,453593,13085,233585557
BEIS,Met Office,2021-03-18,04 CONTRACTORS,SERVICES,REDACTED PERSONAL DATA,453809,1893.34,267253251
BEIS,Met Office,2021-03-23,11 SERVICES,CHIEF FINANCIAL OFFICER,REDACTED PERSONAL DATA,453968,635,729159704
BEIS,Met Office,2021-03-31,11 SERVICES,SCIENCE,REDACTED PERSONAL DATA,22322,2161.81,N/A
BEIS,Met Office,2021-03-23,06 ACCOMMODATION,CHIEF FINANCIAL OFFICER,REDACTED PERSONAL DATA,453988,3754,001874305
BEIS,Met Office,2021-03-02,06 ACCOMMODATION,CHIEF FINANCIAL OFFICER,REDACTED PERSONAL DATA,452849,908,165182855
BEIS,Met Office,2021-03-02,06 ACCOMMODATION,CHIEF FINANCIAL OFFICER,REDACTED PERSONAL DATA,452849,908,165182855
BEIS,Met Office,2021-03-02,06 ACCOMMODATION,CHIEF FINANCIAL OFFICER,REDACTED PERSONAL DATA,452849,908,165182855
BEIS,Met Office,2021-03-02,06 ACCOMMODATION,CHIEF FINANCIAL OFFICER,REDACTED PERSONAL DATA,452849,649,165182855
BEIS,Met Office,2021-03-02,06 ACCOMMODATION,CHIEF FINANCIAL OFFICER,REDACTED PERSONAL DATA,452849,908,165182855
BEIS,Met Office,2021-03-03,12 INTERNATIONAL,MARKETS,REDACTED PERSONAL DATA,10138,2500.59,-
BEIS,Met Office,2021-03-03,12 INTERNATIONAL,MARKETS,REDACTED PERSONAL DATA,10138,107.17,-
BEIS,Met Office,2021-03-31,12 INTERNATIONAL,MARKETS,REDACTED PERSONAL DATA,10169,2578.95,-
BEIS,Met Office,2021-03-16,06 ACCOMMODATION,CHIEF FINANCIAL OFFICER,REDACTED PERSONAL DATA,453708,798.5,NOT VAT REG'D
BEIS,Met Office,2021-03-23,13 MISCELLANEOUS,SERVICES,REDACTED PERSONAL DATA,453855,2727,NOTVATREG
BEIS,Met Office,2021-03-09,06 ACCOMMODATION,CHIEF FINANCIAL OFFICER,REDACTED PERSONAL DATA,452994,200,N/A
